{"text_format":"3","workbook":"xlsx","n_sheets":4,"sheets":["年度累計予算の概要","月間支出の概要","支出明細","寄付とスポンサー"],"not_rendered":{"images":1,"defined_names":15},"read":"whole","date_system":"1900"}

{"sheet":"年度累計予算の概要","index":0,"n_rows":16,"n_cols":7,"rows_kept":16,"merged":[[1,1,1,4]]}
[]
[null,"実績と予算 (年度累計)",{"$nulls":3},"年",{"$f":"YEAR(TODAY())","v":2019}]
[null,"G/L コード","勘定科目","実績","予算","残り (¥)","残り (%)"]
[null,1000,"広告",{"$f":"SUMIF(月間支出の概要[G/L コード],YearToDateTable[[#This Row],[G/L コード]],月間支出の概要[集計])","v":{"v":0,"d":"¥0.00"}},{"v":100000,"d":"¥100,000.00"},{"$f":"IF(YearToDateTable[[#This Row],[予算]]=\"\",\"\",YearToDateTable[[#This Row],[予算]]-YearToDateTable[[#This Row],[実績]])","v":{"v":100000,"d":"¥100,000.00"}},{"$f":"IFERROR(YearToDateTable[[#This Row],[残り (¥)]]/YearToDateTable[[#This Row],[予算]],\"\")","v":{"v":1,"d":"100.00%"}}]
[null,2000,"社内設備",{"$f":"SUMIF(月間支出の概要[G/L コード],YearToDateTable[[#This Row],[G/L コード]],月間支出の概要[集計])","v":{"v":0,"d":"¥0.00"}},{"v":100000,"d":"¥100,000.00"},{"$f":"IF(YearToDateTable[[#This Row],[予算]]=\"\",\"\",YearToDateTable[[#This Row],[予算]]-YearToDateTable[[#This Row],[実績]])","v":{"v":100000,"d":"¥100,000.00"}},{"$f":"IFERROR(YearToDateTable[[#This Row],[残り (¥)]]/YearToDateTable[[#This Row],[予算]],\"\")","v":{"v":1,"d":"100.00%"}}]
[null,3000,"プリンター",{"$f":"SUMIF(月間支出の概要[G/L コード],YearToDateTable[[#This Row],[G/L コード]],月間支出の概要[集計])","v":{"v":0,"d":"¥0.00"}},{"v":100000,"d":"¥100,000.00"},{"$f":"IF(YearToDateTable[[#This Row],[予算]]=\"\",\"\",YearToDateTable[[#This Row],[予算]]-YearToDateTable[[#This Row],[実績]])","v":{"v":100000,"d":"¥100,000.00"}},{"$f":"IFERROR(YearToDateTable[[#This Row],[残り (¥)]]/YearToDateTable[[#This Row],[予算]],\"\")","v":{"v":1,"d":"100.00%"}}]
[null,4000,"サーバーのコスト",{"$f":"SUMIF(月間支出の概要[G/L コード],YearToDateTable[[#This Row],[G/L コード]],月間支出の概要[集計])","v":{"v":0,"d":"¥0.00"}},{"v":100000,"d":"¥100,000.00"},{"$f":"IF(YearToDateTable[[#This Row],[予算]]=\"\",\"\",YearToDateTable[[#This Row],[予算]]-YearToDateTable[[#This Row],[実績]])","v":{"v":100000,"d":"¥100,000.00"}},{"$f":"IFERROR(YearToDateTable[[#This Row],[残り (¥)]]/YearToDateTable[[#This Row],[予算]],\"\")","v":{"v":1,"d":"100.00%"}}]
[null,5000,"消耗品",{"$f":"SUMIF(月間支出の概要[G/L コード],YearToDateTable[[#This Row],[G/L コード]],月間支出の概要[集計])","v":{"v":0,"d":"¥0.00"}},{"v":50000,"d":"¥50,000.00"},{"$f":"IF(YearToDateTable[[#This Row],[予算]]=\"\",\"\",YearToDateTable[[#This Row],[予算]]-YearToDateTable[[#This Row],[実績]])","v":{"v":50000,"d":"¥50,000.00"}},{"$f":"IFERROR(YearToDateTable[[#This Row],[残り (¥)]]/YearToDateTable[[#This Row],[予算]],\"\")","v":{"v":1,"d":"100.00%"}}]
[null,6000,"クライアント経費",{"$f":"SUMIF(月間支出の概要[G/L コード],YearToDateTable[[#This Row],[G/L コード]],月間支出の概要[集計])","v":{"v":0,"d":"¥0.00"}},{"v":25000,"d":"¥25,000.00"},{"$f":"IF(YearToDateTable[[#This Row],[予算]]=\"\",\"\",YearToDateTable[[#This Row],[予算]]-YearToDateTable[[#This Row],[実績]])","v":{"v":25000,"d":"¥25,000.00"}},{"$f":"IFERROR(YearToDateTable[[#This Row],[残り (¥)]]/YearToDateTable[[#This Row],[予算]],\"\")","v":{"v":1,"d":"100.00%"}}]
[null,7000,"コンピューター",{"$f":"SUMIF(月間支出の概要[G/L コード],YearToDateTable[[#This Row],[G/L コード]],月間支出の概要[集計])","v":{"v":0,"d":"¥0.00"}},{"v":75000,"d":"¥75,000.00"},{"$f":"IF(YearToDateTable[[#This Row],[予算]]=\"\",\"\",YearToDateTable[[#This Row],[予算]]-YearToDateTable[[#This Row],[実績]])","v":{"v":75000,"d":"¥75,000.00"}},{"$f":"IFERROR(YearToDateTable[[#This Row],[残り (¥)]]/YearToDateTable[[#This Row],[予算]],\"\")","v":{"v":1,"d":"100.00%"}}]
[null,8000,"医療計画",{"$f":"SUMIF(月間支出の概要[G/L コード],YearToDateTable[[#This Row],[G/L コード]],月間支出の概要[集計])","v":{"v":0,"d":"¥0.00"}},{"v":65000,"d":"¥65,000.00"},{"$f":"IF(YearToDateTable[[#This Row],[予算]]=\"\",\"\",YearToDateTable[[#This Row],[予算]]-YearToDateTable[[#This Row],[実績]])","v":{"v":65000,"d":"¥65,000.00"}},{"$f":"IFERROR(YearToDateTable[[#This Row],[残り (¥)]]/YearToDateTable[[#This Row],[予算]],\"\")","v":{"v":1,"d":"100.00%"}}]
[null,9000,"建物のコスト",{"$f":"SUMIF(月間支出の概要[G/L コード],YearToDateTable[[#This Row],[G/L コード]],月間支出の概要[集計])","v":{"v":0,"d":"¥0.00"}},{"v":125000,"d":"¥125,000.00"},{"$f":"IF(YearToDateTable[[#This Row],[予算]]=\"\",\"\",YearToDateTable[[#This Row],[予算]]-YearToDateTable[[#This Row],[実績]])","v":{"v":125000,"d":"¥125,000.00"}},{"$f":"IFERROR(YearToDateTable[[#This Row],[残り (¥)]]/YearToDateTable[[#This Row],[予算]],\"\")","v":{"v":1,"d":"100.00%"}}]
[null,10000,"マーケティング",{"$f":"SUMIF(月間支出の概要[G/L コード],YearToDateTable[[#This Row],[G/L コード]],月間支出の概要[集計])","v":{"v":0,"d":"¥0.00"}},{"v":100000,"d":"¥100,000.00"},{"$f":"IF(YearToDateTable[[#This Row],[予算]]=\"\",\"\",YearToDateTable[[#This Row],[予算]]-YearToDateTable[[#This Row],[実績]])","v":{"v":100000,"d":"¥100,000.00"}},{"$f":"IFERROR(YearToDateTable[[#This Row],[残り (¥)]]/YearToDateTable[[#This Row],[予算]],\"\")","v":{"v":1,"d":"100.00%"}}]
[null,11000,"寄付",{"$f":"SUMIF(月間支出の概要[G/L コード],YearToDateTable[[#This Row],[G/L コード]],月間支出の概要[集計])","v":{"v":0,"d":"¥0.00"}},{"v":250000,"d":"¥250,000.00"},{"$f":"IF(YearToDateTable[[#This Row],[予算]]=\"\",\"\",YearToDateTable[[#This Row],[予算]]-YearToDateTable[[#This Row],[実績]])","v":{"v":250000,"d":"¥250,000.00"}},{"$f":"IFERROR(YearToDateTable[[#This Row],[残り (¥)]]/YearToDateTable[[#This Row],[予算]],\"\")","v":{"v":1,"d":"100.00%"}}]
[null,12000,"スポンサー",{"$f":"SUMIF(月間支出の概要[G/L コード],YearToDateTable[[#This Row],[G/L コード]],月間支出の概要[集計])","v":{"v":0,"d":"¥0.00"}},{"v":50000,"d":"¥50,000.00"},{"$f":"IF(YearToDateTable[[#This Row],[予算]]=\"\",\"\",YearToDateTable[[#This Row],[予算]]-YearToDateTable[[#This Row],[実績]])","v":{"v":50000,"d":"¥50,000.00"}},{"$f":"IFERROR(YearToDateTable[[#This Row],[残り (¥)]]/YearToDateTable[[#This Row],[予算]],\"\")","v":{"v":1,"d":"100.00%"}}]
[null,"集計",null,{"$f":"SUBTOTAL(109,YearToDateTable[実績])","v":{"v":0,"d":"¥0.00"}},{"$f":"SUBTOTAL(109,YearToDateTable[予算])","v":{"v":1140000,"d":"¥1,140,000.00"}},{"$f":"SUBTOTAL(109,YearToDateTable[残り (¥)])","v":{"v":1140000,"d":"¥1,140,000.00"}},{"$f":"YearToDateTable[[#Totals],[残り (¥)]]/YearToDateTable[[#Totals],[予算]]","v":{"v":1,"d":"100.00%"}}]

{"sheet":"月間支出の概要","index":1,"n_rows":18,"n_cols":17,"rows_kept":18,"merged":[[1,1,1,16]]}
[]
[null,"1 か月の経費の概要"]
[null,"このセルには勘定科目別にデータをフィルターするスライサーが表示されます。",null,{"$f":"DATEVALUE(\"1-JAN\"&_年度)","v":{"v":43466,"d":"4346600.00%"}},{"$f":"DATEVALUE(\"1-FEB\"&_年度)","v":{"v":43497,"d":"4349700.00%"}},{"$f":"DATEVALUE(\"1-MAR\"&_年度)","v":{"v":43525,"d":"4352500.00%"}},{"$f":"DATEVALUE(\"1-APR\"&_年度)","v":{"v":43556,"d":"4355600.00%"}},{"$f":"DATEVALUE(\"1-MAY\"&_年度)","v":{"v":43586,"d":"4358600.00%"}},{"$f":"DATEVALUE(\"1-JUN\"&_年度)","v":{"v":43617,"d":"4361700.00%"}},{"$f":"DATEVALUE(\"1-JULY\"&_年度)","v":{"v":43647,"d":"4364700.00%"}},{"$f":"DATEVALUE(\"1-AUG\"&_年度)","v":{"v":43678,"d":"4367800.00%"}},{"$f":"DATEVALUE(\"1-SEP\"&_年度)","v":{"v":43709,"d":"4370900.00%"}},{"$f":"DATEVALUE(\"1-OCT\"&_年度)","v":{"v":43739,"d":"4373900.00%"}},{"$f":"DATEVALUE(\"1-NOV\"&_年度)","v":{"v":43770,"d":"4377000.00%"}},{"$f":"DATEVALUE(\"1-DEC\"&_年度)","v":{"v":43800,"d":"4380000.00%"}}]
[{"$nulls":3},{"$f":"EOMONTH(D3,0)","v":{"v":43496,"d":"4349600.00%"}},{"$f":"EOMONTH(E3,0)","v":{"v":43524,"d":"4352400.00%"}},{"$f":"EOMONTH(F3,0)","v":{"v":43555,"d":"4355500.00%"}},{"$f":"EOMONTH(G3,0)","v":{"v":43585,"d":"4358500.00%"}},{"$f":"EOMONTH(H3,0)","v":{"v":43616,"d":"4361600.00%"}},{"$f":"EOMONTH(I3,0)","v":{"v":43646,"d":"4364600.00%"}},{"v":43677,"d":"4367700.00%"},{"v":43708,"d":"4370800.00%"},{"v":43738,"d":"4373800.00%"},{"v":43769,"d":"4376900.00%"},{"v":43799,"d":"4379900.00%"},{"v":43830,"d":"4383000.00%"}]
[null,"G/L コード","勘定科目","1月","2月","3月","4月","5月","6月","7月","8月","9月","10月","11月","12月","集計"," "]
[null,1000,"広告",{"$f":"SUMIFS(支出明細[小切手の金額],支出明細[G/L コード],月間支出の概要[[#This Row],[G/L コード]],支出明細[請求日],\">=\"&D$3,支出明細[請求日],\"<=\"&D$4)+SUMIFS(その他[小切手の金額],その他[G/L コード],月間支出の概要[[#This Row],[G/L コード]],その他[小切手の請求開始日付],\">=\"&DATEVALUE(_年度&\"年\"&月間支出の概要[[#Headers],[1月]]&\"1日\"),その他[小切手の請求開始日付],\"<=\"&D$4)","v":{"v":0,"d":"¥0.00"}},{"$f":"SUMIFS(支出明細[小切手の金額],支出明細[G/L コード],月間支出の概要[[#This Row],[G/L コード]],支出明細[請求日],\">=\"&E$3,支出明細[請求日],\"<=\"&E$4)+SUMIFS(その他[小切手の金額],その他[G/L コード],月間支出の概要[[#This Row],[G/L コード]],その他[小切手の請求開始日付],\">=\"&DATEVALUE(_年度&\"年\"&月間支出の概要[[#Headers],[2月]]&\"1日\"),その他[小切手の請求開始日付],\"<=\"&E$4)","v":{"v":0,"d":"¥0.00"}},{"$f":"SUMIFS(支出明細[小切手の金額],支出明細[G/L コード],月間支出の概要[[#This Row],[G/L コード]],支出明細[請求日],\">=\"&F$3,支出明細[請求日],\"<=\"&F$4)+SUMIFS(その他[小切手の金額],その他[G/L コード],月間支出の概要[[#This Row],[G/L コード]],その他[小切手の請求開始日付],\">=\"&DATEVALUE(_年度&\"年\"&月間支出の概要[[#Headers],[3月]]&\"1日\"),その他[小切手の請求開始日付],\"<=\"&F$4)","v":{"v":0,"d":"¥0.00"}},{"$f":"SUMIFS(支出明細[小切手の金額],支出明細[G/L コード],月間支出の概要[[#This Row],[G/L コード]],支出明細[請求日],\">=\"&G$3,支出明細[請求日],\"<=\"&G$4)+SUMIFS(その他[小切手の金額],その他[G/L コード],月間支出の概要[[#This Row],[G/L コード]],その他[小切手の請求開始日付],\">=\"&DATEVALUE(_年度&\"年\"&月間支出の概要[[#Headers],[4月]]&\"1日\"),その他[小切手の請求開始日付],\"<=\"&G$4)","v":{"v":0,"d":"¥0.00"}},{"$f":"SUMIFS(支出明細[小切手の金額],支出明細[G/L コード],月間支出の概要[[#This Row],[G/L コード]],支出明細[請求日],\">=\"&H$3,支出明細[請求日],\"<=\"&H$4)+SUMIFS(その他[小切手の金額],その他[G/L コード],月間支出の概要[[#This Row],[G/L コード]],その他[小切手の請求開始日付],\">=\"&DATEVALUE(_年度&\"年\"&月間支出の概要[[#Headers],[5月]]&\"1日\"),その他[小切手の請求開始日付],\"<=\"&H$4)","v":{"v":0,"d":"¥0.00"}},{"$f":"SUMIFS(支出明細[小切手の金額],支出明細[G/L コード],月間支出の概要[[#This Row],[G/L コード]],支出明細[請求日],\">=\"&I$3,支出明細[請求日],\"<=\"&I$4)+SUMIFS(その他[小切手の金額],その他[G/L コード],月間支出の概要[[#This Row],[G/L コード]],その他[小切手の請求開始日付],\">=\"&DATEVALUE(_年度&\"年\"&月間支出の概要[[#Headers],[6月]]&\"1日\"),その他[小切手の請求開始日付],\"<=\"&I$4)","v":{"v":0,"d":"¥0.00"}},{"$f":"SUMIFS(支出明細[小切手の金額],支出明細[G/L コード],月間支出の概要[[#This Row],[G/L コード]],支出明細[請求日],\">=\"&J$3,支出明細[請求日],\"<=\"&J$4)+SUMIFS(その他[小切手の金額],その他[G/L コード],月間支出の概要[[#This Row],[G/L コード]],その他[小切手の請求開始日付],\">=\"&DATEVALUE(_年度&\"年\"&月間支出の概要[[#Headers],[7月]]&\"1日\"),その他[小切手の請求開始日付],\"<=\"&J$4)","v":{"v":0,"d":"¥0.00"}},{"$f":"SUMIFS(支出明細[小切手の金額],支出明細[G/L コード],月間支出の概要[[#This Row],[G/L コード]],支出明細[請求日],\">=\"&K$3,支出明細[請求日],\"<=\"&K$4)+SUMIFS(その他[小切手の金額],その他[G/L コード],月間支出の概要[[#This Row],[G/L コード]],その他[小切手の請求開始日付],\">=\"&DATEVALUE(_年度&\"年\"&月間支出の概要[[#Headers],[8月]]&\"1日\"),その他[小切手の請求開始日付],\"<=\"&K$4)","v":{"v":0,"d":"¥0.00"}},{"$f":"SUMIFS(支出明細[小切手の金額],支出明細[G/L コード],月間支出の概要[[#This Row],[G/L コード]],支出明細[請求日],\">=\"&L$3,支出明細[請求日],\"<=\"&L$4)+SUMIFS(その他[小切手の金額],その他[G/L コード],月間支出の概要[[#This Row],[G/L コード]],その他[小切手の請求開始日付],\">=\"&DATEVALUE(_年度&\"年\"&月間支出の概要[[#Headers],[9月]]&\"1日\"),その他[小切手の請求開始日付],\"<=\"&L$4)","v":{"v":0,"d":"¥0.00"}},{"$f":"SUMIFS(支出明細[小切手の金額],支出明細[G/L コード],月間支出の概要[[#This Row],[G/L コード]],支出明細[請求日],\">=\"&M$3,支出明細[請求日],\"<=\"&M$4)+SUMIFS(その他[小切手の金額],その他[G/L コード],月間支出の概要[[#This Row],[G/L コード]],その他[小切手の請求開始日付],\">=\"&DATEVALUE(_年度&\"年\"&月間支出の概要[[#Headers],[10月]]&\"1日\"),その他[小切手の請求開始日付],\"<=\"&M$4)","v":{"v":0,"d":"¥0.00"}},{"$f":"SUMIFS(支出明細[小切手の金額],支出明細[G/L コード],月間支出の概要[[#This Row],[G/L コード]],支出明細[請求日],\">=\"&N$3,支出明細[請求日],\"<=\"&N$4)+SUMIFS(その他[小切手の金額],その他[G/L コード],月間支出の概要[[#This Row],[G/L コード]],その他[小切手の請求開始日付],\">=\"&DATEVALUE(_年度&\"年\"&月間支出の概要[[#Headers],[11月]]&\"1日\"),その他[小切手の請求開始日付],\"<=\"&N$4)","v":{"v":0,"d":"¥0.00"}},{"$f":"SUMIFS(支出明細[小切手の金額],支出明細[G/L コード],月間支出の概要[[#This Row],[G/L コード]],支出明細[請求日],\">=\"&O$3,支出明細[請求日],\"<=\"&O$4)+SUMIFS(その他[小切手の金額],その他[G/L コード],月間支出の概要[[#This Row],[G/L コード]],その他[小切手の請求開始日付],\">=\"&DATEVALUE(_年度&\"年\"&月間支出の概要[[#Headers],[12月]]&\"1日\"),その他[小切手の請求開始日付],\"<=\"&O$4)","v":{"v":0,"d":"¥0.00"}},{"$f":"SUM(月間支出の概要[[#This Row],[1月]:[12月]])","v":{"v":0,"d":"¥0.00"}}]
[null,2000,"社内設備",{"$f":"SUMIFS(支出明細[小切手の金額],支出明細[G/L コード],月間支出の概要[[#This Row],[G/L コード]],支出明細[請求日],\">=\"&D$3,支出明細[請求日],\"<=\"&D$4)+SUMIFS(その他[小切手の金額],その他[G/L コード],月間支出の概要[[#This Row],[G/L コード]],その他[小切手の請求開始日付],\">=\"&DATEVALUE(_年度&\"年\"&月間支出の概要[[#Headers],[1月]]&\"1日\"),その他[小切手の請求開始日付],\"<=\"&D$4)","v":{"v":0,"d":"¥0.00"}},{"$f":"SUMIFS(支出明細[小切手の金額],支出明細[G/L コード],月間支出の概要[[#This Row],[G/L コード]],支出明細[請求日],\">=\"&E$3,支出明細[請求日],\"<=\"&E$4)+SUMIFS(その他[小切手の金額],その他[G/L コード],月間支出の概要[[#This Row],[G/L コード]],その他[小切手の請求開始日付],\">=\"&DATEVALUE(_年度&\"年\"&月間支出の概要[[#Headers],[2月]]&\"1日\"),その他[小切手の請求開始日付],\"<=\"&E$4)","v":{"v":0,"d":"¥0.00"}},{"$f":"SUMIFS(支出明細[小切手の金額],支出明細[G/L コード],月間支出の概要[[#This Row],[G/L コード]],支出明細[請求日],\">=\"&F$3,支出明細[請求日],\"<=\"&F$4)+SUMIFS(その他[小切手の金額],その他[G/L コード],月間支出の概要[[#This Row],[G/L コード]],その他[小切手の請求開始日付],\">=\"&DATEVALUE(_年度&\"年\"&月間支出の概要[[#Headers],[3月]]&\"1日\"),その他[小切手の請求開始日付],\"<=\"&F$4)","v":{"v":0,"d":"¥0.00"}},{"$f":"SUMIFS(支出明細[小切手の金額],支出明細[G/L コード],月間支出の概要[[#This Row],[G/L コード]],支出明細[請求日],\">=\"&G$3,支出明細[請求日],\"<=\"&G$4)+SUMIFS(その他[小切手の金額],その他[G/L コード],月間支出の概要[[#This Row],[G/L コード]],その他[小切手の請求開始日付],\">=\"&DATEVALUE(_年度&\"年\"&月間支出の概要[[#Headers],[4月]]&\"1日\"),その他[小切手の請求開始日付],\"<=\"&G$4)","v":{"v":0,"d":"¥0.00"}},{"$f":"SUMIFS(支出明細[小切手の金額],支出明細[G/L コード],月間支出の概要[[#This Row],[G/L コード]],支出明細[請求日],\">=\"&H$3,支出明細[請求日],\"<=\"&H$4)+SUMIFS(その他[小切手の金額],その他[G/L コード],月間支出の概要[[#This Row],[G/L コード]],その他[小切手の請求開始日付],\">=\"&DATEVALUE(_年度&\"年\"&月間支出の概要[[#Headers],[5月]]&\"1日\"),その他[小切手の請求開始日付],\"<=\"&H$4)","v":{"v":0,"d":"¥0.00"}},{"$f":"SUMIFS(支出明細[小切手の金額],支出明細[G/L コード],月間支出の概要[[#This Row],[G/L コード]],支出明細[請求日],\">=\"&I$3,支出明細[請求日],\"<=\"&I$4)+SUMIFS(その他[小切手の金額],その他[G/L コード],月間支出の概要[[#This Row],[G/L コード]],その他[小切手の請求開始日付],\">=\"&DATEVALUE(_年度&\"年\"&月間支出の概要[[#Headers],[6月]]&\"1日\"),その他[小切手の請求開始日付],\"<=\"&I$4)","v":{"v":0,"d":"¥0.00"}},{"$f":"SUMIFS(支出明細[小切手の金額],支出明細[G/L コード],月間支出の概要[[#This Row],[G/L コード]],支出明細[請求日],\">=\"&J$3,支出明細[請求日],\"<=\"&J$4)+SUMIFS(その他[小切手の金額],その他[G/L コード],月間支出の概要[[#This Row],[G/L コード]],その他[小切手の請求開始日付],\">=\"&DATEVALUE(_年度&\"年\"&月間支出の概要[[#Headers],[7月]]&\"1日\"),その他[小切手の請求開始日付],\"<=\"&J$4)","v":{"v":0,"d":"¥0.00"}},{"$f":"SUMIFS(支出明細[小切手の金額],支出明細[G/L コード],月間支出の概要[[#This Row],[G/L コード]],支出明細[請求日],\">=\"&K$3,支出明細[請求日],\"<=\"&K$4)+SUMIFS(その他[小切手の金額],その他[G/L コード],月間支出の概要[[#This Row],[G/L コード]],その他[小切手の請求開始日付],\">=\"&DATEVALUE(_年度&\"年\"&月間支出の概要[[#Headers],[8月]]&\"1日\"),その他[小切手の請求開始日付],\"<=\"&K$4)","v":{"v":0,"d":"¥0.00"}},{"$f":"SUMIFS(支出明細[小切手の金額],支出明細[G/L コード],月間支出の概要[[#This Row],[G/L コード]],支出明細[請求日],\">=\"&L$3,支出明細[請求日],\"<=\"&L$4)+SUMIFS(その他[小切手の金額],その他[G/L コード],月間支出の概要[[#This Row],[G/L コード]],その他[小切手の請求開始日付],\">=\"&DATEVALUE(_年度&\"年\"&月間支出の概要[[#Headers],[9月]]&\"1日\"),その他[小切手の請求開始日付],\"<=\"&L$4)","v":{"v":0,"d":"¥0.00"}},{"$f":"SUMIFS(支出明細[小切手の金額],支出明細[G/L コード],月間支出の概要[[#This Row],[G/L コード]],支出明細[請求日],\">=\"&M$3,支出明細[請求日],\"<=\"&M$4)+SUMIFS(その他[小切手の金額],その他[G/L コード],月間支出の概要[[#This Row],[G/L コード]],その他[小切手の請求開始日付],\">=\"&DATEVALUE(_年度&\"年\"&月間支出の概要[[#Headers],[10月]]&\"1日\"),その他[小切手の請求開始日付],\"<=\"&M$4)","v":{"v":0,"d":"¥0.00"}},{"$f":"SUMIFS(支出明細[小切手の金額],支出明細[G/L コード],月間支出の概要[[#This Row],[G/L コード]],支出明細[請求日],\">=\"&N$3,支出明細[請求日],\"<=\"&N$4)+SUMIFS(その他[小切手の金額],その他[G/L コード],月間支出の概要[[#This Row],[G/L コード]],その他[小切手の請求開始日付],\">=\"&DATEVALUE(_年度&\"年\"&月間支出の概要[[#Headers],[11月]]&\"1日\"),その他[小切手の請求開始日付],\"<=\"&N$4)","v":{"v":0,"d":"¥0.00"}},{"$f":"SUMIFS(支出明細[小切手の金額],支出明細[G/L コード],月間支出の概要[[#This Row],[G/L コード]],支出明細[請求日],\">=\"&O$3,支出明細[請求日],\"<=\"&O$4)+SUMIFS(その他[小切手の金額],その他[G/L コード],月間支出の概要[[#This Row],[G/L コード]],その他[小切手の請求開始日付],\">=\"&DATEVALUE(_年度&\"年\"&月間支出の概要[[#Headers],[12月]]&\"1日\"),その他[小切手の請求開始日付],\"<=\"&O$4)","v":{"v":0,"d":"¥0.00"}},{"$f":"SUM(月間支出の概要[[#This Row],[1月]:[12月]])","v":{"v":0,"d":"¥0.00"}}]
[null,3000,"プリンター",{"$f":"SUMIFS(支出明細[小切手の金額],支出明細[G/L コード],月間支出の概要[[#This Row],[G/L コード]],支出明細[請求日],\">=\"&D$3,支出明細[請求日],\"<=\"&D$4)+SUMIFS(その他[小切手の金額],その他[G/L コード],月間支出の概要[[#This Row],[G/L コード]],その他[小切手の請求開始日付],\">=\"&DATEVALUE(_年度&\"年\"&月間支出の概要[[#Headers],[1月]]&\"1日\"),その他[小切手の請求開始日付],\"<=\"&D$4)","v":{"v":0,"d":"¥0.00"}},{"$f":"SUMIFS(支出明細[小切手の金額],支出明細[G/L コード],月間支出の概要[[#This Row],[G/L コード]],支出明細[請求日],\">=\"&E$3,支出明細[請求日],\"<=\"&E$4)+SUMIFS(その他[小切手の金額],その他[G/L コード],月間支出の概要[[#This Row],[G/L コード]],その他[小切手の請求開始日付],\">=\"&DATEVALUE(_年度&\"年\"&月間支出の概要[[#Headers],[2月]]&\"1日\"),その他[小切手の請求開始日付],\"<=\"&E$4)","v":{"v":0,"d":"¥0.00"}},{"$f":"SUMIFS(支出明細[小切手の金額],支出明細[G/L コード],月間支出の概要[[#This Row],[G/L コード]],支出明細[請求日],\">=\"&F$3,支出明細[請求日],\"<=\"&F$4)+SUMIFS(その他[小切手の金額],その他[G/L コード],月間支出の概要[[#This Row],[G/L コード]],その他[小切手の請求開始日付],\">=\"&DATEVALUE(_年度&\"年\"&月間支出の概要[[#Headers],[3月]]&\"1日\"),その他[小切手の請求開始日付],\"<=\"&F$4)","v":{"v":0,"d":"¥0.00"}},{"$f":"SUMIFS(支出明細[小切手の金額],支出明細[G/L コード],月間支出の概要[[#This Row],[G/L コード]],支出明細[請求日],\">=\"&G$3,支出明細[請求日],\"<=\"&G$4)+SUMIFS(その他[小切手の金額],その他[G/L コード],月間支出の概要[[#This Row],[G/L コード]],その他[小切手の請求開始日付],\">=\"&DATEVALUE(_年度&\"年\"&月間支出の概要[[#Headers],[4月]]&\"1日\"),その他[小切手の請求開始日付],\"<=\"&G$4)","v":{"v":0,"d":"¥0.00"}},{"$f":"SUMIFS(支出明細[小切手の金額],支出明細[G/L コード],月間支出の概要[[#This Row],[G/L コード]],支出明細[請求日],\">=\"&H$3,支出明細[請求日],\"<=\"&H$4)+SUMIFS(その他[小切手の金額],その他[G/L コード],月間支出の概要[[#This Row],[G/L コード]],その他[小切手の請求開始日付],\">=\"&DATEVALUE(_年度&\"年\"&月間支出の概要[[#Headers],[5月]]&\"1日\"),その他[小切手の請求開始日付],\"<=\"&H$4)","v":{"v":0,"d":"¥0.00"}},{"$f":"SUMIFS(支出明細[小切手の金額],支出明細[G/L コード],月間支出の概要[[#This Row],[G/L コード]],支出明細[請求日],\">=\"&I$3,支出明細[請求日],\"<=\"&I$4)+SUMIFS(その他[小切手の金額],その他[G/L コード],月間支出の概要[[#This Row],[G/L コード]],その他[小切手の請求開始日付],\">=\"&DATEVALUE(_年度&\"年\"&月間支出の概要[[#Headers],[6月]]&\"1日\"),その他[小切手の請求開始日付],\"<=\"&I$4)","v":{"v":0,"d":"¥0.00"}},{"$f":"SUMIFS(支出明細[小切手の金額],支出明細[G/L コード],月間支出の概要[[#This Row],[G/L コード]],支出明細[請求日],\">=\"&J$3,支出明細[請求日],\"<=\"&J$4)+SUMIFS(その他[小切手の金額],その他[G/L コード],月間支出の概要[[#This Row],[G/L コード]],その他[小切手の請求開始日付],\">=\"&DATEVALUE(_年度&\"年\"&月間支出の概要[[#Headers],[7月]]&\"1日\"),その他[小切手の請求開始日付],\"<=\"&J$4)","v":{"v":0,"d":"¥0.00"}},{"$f":"SUMIFS(支出明細[小切手の金額],支出明細[G/L コード],月間支出の概要[[#This Row],[G/L コード]],支出明細[請求日],\">=\"&K$3,支出明細[請求日],\"<=\"&K$4)+SUMIFS(その他[小切手の金額],その他[G/L コード],月間支出の概要[[#This Row],[G/L コード]],その他[小切手の請求開始日付],\">=\"&DATEVALUE(_年度&\"年\"&月間支出の概要[[#Headers],[8月]]&\"1日\"),その他[小切手の請求開始日付],\"<=\"&K$4)","v":{"v":0,"d":"¥0.00"}},{"$f":"SUMIFS(支出明細[小切手の金額],支出明細[G/L コード],月間支出の概要[[#This Row],[G/L コード]],支出明細[請求日],\">=\"&L$3,支出明細[請求日],\"<=\"&L$4)+SUMIFS(その他[小切手の金額],その他[G/L コード],月間支出の概要[[#This Row],[G/L コード]],その他[小切手の請求開始日付],\">=\"&DATEVALUE(_年度&\"年\"&月間支出の概要[[#Headers],[9月]]&\"1日\"),その他[小切手の請求開始日付],\"<=\"&L$4)","v":{"v":0,"d":"¥0.00"}},{"$f":"SUMIFS(支出明細[小切手の金額],支出明細[G/L コード],月間支出の概要[[#This Row],[G/L コード]],支出明細[請求日],\">=\"&M$3,支出明細[請求日],\"<=\"&M$4)+SUMIFS(その他[小切手の金額],その他[G/L コード],月間支出の概要[[#This Row],[G/L コード]],その他[小切手の請求開始日付],\">=\"&DATEVALUE(_年度&\"年\"&月間支出の概要[[#Headers],[10月]]&\"1日\"),その他[小切手の請求開始日付],\"<=\"&M$4)","v":{"v":0,"d":"¥0.00"}},{"$f":"SUMIFS(支出明細[小切手の金額],支出明細[G/L コード],月間支出の概要[[#This Row],[G/L コード]],支出明細[請求日],\">=\"&N$3,支出明細[請求日],\"<=\"&N$4)+SUMIFS(その他[小切手の金額],その他[G/L コード],月間支出の概要[[#This Row],[G/L コード]],その他[小切手の請求開始日付],\">=\"&DATEVALUE(_年度&\"年\"&月間支出の概要[[#Headers],[11月]]&\"1日\"),その他[小切手の請求開始日付],\"<=\"&N$4)","v":{"v":0,"d":"¥0.00"}},{"$f":"SUMIFS(支出明細[小切手の金額],支出明細[G/L コード],月間支出の概要[[#This Row],[G/L コード]],支出明細[請求日],\">=\"&O$3,支出明細[請求日],\"<=\"&O$4)+SUMIFS(その他[小切手の金額],その他[G/L コード],月間支出の概要[[#This Row],[G/L コード]],その他[小切手の請求開始日付],\">=\"&DATEVALUE(_年度&\"年\"&月間支出の概要[[#Headers],[12月]]&\"1日\"),その他[小切手の請求開始日付],\"<=\"&O$4)","v":{"v":0,"d":"¥0.00"}},{"$f":"SUM(月間支出の概要[[#This Row],[1月]:[12月]])","v":{"v":0,"d":"¥0.00"}}]
[null,4000,"サーバーのコスト",{"$f":"SUMIFS(支出明細[小切手の金額],支出明細[G/L コード],月間支出の概要[[#This Row],[G/L コード]],支出明細[請求日],\">=\"&D$3,支出明細[請求日],\"<=\"&D$4)+SUMIFS(その他[小切手の金額],その他[G/L コード],月間支出の概要[[#This Row],[G/L コード]],その他[小切手の請求開始日付],\">=\"&DATEVALUE(_年度&\"年\"&月間支出の概要[[#Headers],[1月]]&\"1日\"),その他[小切手の請求開始日付],\"<=\"&D$4)","v":{"v":0,"d":"¥0.00"}},{"$f":"SUMIFS(支出明細[小切手の金額],支出明細[G/L コード],月間支出の概要[[#This Row],[G/L コード]],支出明細[請求日],\">=\"&E$3,支出明細[請求日],\"<=\"&E$4)+SUMIFS(その他[小切手の金額],その他[G/L コード],月間支出の概要[[#This Row],[G/L コード]],その他[小切手の請求開始日付],\">=\"&DATEVALUE(_年度&\"年\"&月間支出の概要[[#Headers],[2月]]&\"1日\"),その他[小切手の請求開始日付],\"<=\"&E$4)","v":{"v":0,"d":"¥0.00"}},{"$f":"SUMIFS(支出明細[小切手の金額],支出明細[G/L コード],月間支出の概要[[#This Row],[G/L コード]],支出明細[請求日],\">=\"&F$3,支出明細[請求日],\"<=\"&F$4)+SUMIFS(その他[小切手の金額],その他[G/L コード],月間支出の概要[[#This Row],[G/L コード]],その他[小切手の請求開始日付],\">=\"&DATEVALUE(_年度&\"年\"&月間支出の概要[[#Headers],[3月]]&\"1日\"),その他[小切手の請求開始日付],\"<=\"&F$4)","v":{"v":0,"d":"¥0.00"}},{"$f":"SUMIFS(支出明細[小切手の金額],支出明細[G/L コード],月間支出の概要[[#This Row],[G/L コード]],支出明細[請求日],\">=\"&G$3,支出明細[請求日],\"<=\"&G$4)+SUMIFS(その他[小切手の金額],その他[G/L コード],月間支出の概要[[#This Row],[G/L コード]],その他[小切手の請求開始日付],\">=\"&DATEVALUE(_年度&\"年\"&月間支出の概要[[#Headers],[4月]]&\"1日\"),その他[小切手の請求開始日付],\"<=\"&G$4)","v":{"v":0,"d":"¥0.00"}},{"$f":"SUMIFS(支出明細[小切手の金額],支出明細[G/L コード],月間支出の概要[[#This Row],[G/L コード]],支出明細[請求日],\">=\"&H$3,支出明細[請求日],\"<=\"&H$4)+SUMIFS(その他[小切手の金額],その他[G/L コード],月間支出の概要[[#This Row],[G/L コード]],その他[小切手の請求開始日付],\">=\"&DATEVALUE(_年度&\"年\"&月間支出の概要[[#Headers],[5月]]&\"1日\"),その他[小切手の請求開始日付],\"<=\"&H$4)","v":{"v":0,"d":"¥0.00"}},{"$f":"SUMIFS(支出明細[小切手の金額],支出明細[G/L コード],月間支出の概要[[#This Row],[G/L コード]],支出明細[請求日],\">=\"&I$3,支出明細[請求日],\"<=\"&I$4)+SUMIFS(その他[小切手の金額],その他[G/L コード],月間支出の概要[[#This Row],[G/L コード]],その他[小切手の請求開始日付],\">=\"&DATEVALUE(_年度&\"年\"&月間支出の概要[[#Headers],[6月]]&\"1日\"),その他[小切手の請求開始日付],\"<=\"&I$4)","v":{"v":0,"d":"¥0.00"}},{"$f":"SUMIFS(支出明細[小切手の金額],支出明細[G/L コード],月間支出の概要[[#This Row],[G/L コード]],支出明細[請求日],\">=\"&J$3,支出明細[請求日],\"<=\"&J$4)+SUMIFS(その他[小切手の金額],その他[G/L コード],月間支出の概要[[#This Row],[G/L コード]],その他[小切手の請求開始日付],\">=\"&DATEVALUE(_年度&\"年\"&月間支出の概要[[#Headers],[7月]]&\"1日\"),その他[小切手の請求開始日付],\"<=\"&J$4)","v":{"v":0,"d":"¥0.00"}},{"$f":"SUMIFS(支出明細[小切手の金額],支出明細[G/L コード],月間支出の概要[[#This Row],[G/L コード]],支出明細[請求日],\">=\"&K$3,支出明細[請求日],\"<=\"&K$4)+SUMIFS(その他[小切手の金額],その他[G/L コード],月間支出の概要[[#This Row],[G/L コード]],その他[小切手の請求開始日付],\">=\"&DATEVALUE(_年度&\"年\"&月間支出の概要[[#Headers],[8月]]&\"1日\"),その他[小切手の請求開始日付],\"<=\"&K$4)","v":{"v":0,"d":"¥0.00"}},{"$f":"SUMIFS(支出明細[小切手の金額],支出明細[G/L コード],月間支出の概要[[#This Row],[G/L コード]],支出明細[請求日],\">=\"&L$3,支出明細[請求日],\"<=\"&L$4)+SUMIFS(その他[小切手の金額],その他[G/L コード],月間支出の概要[[#This Row],[G/L コード]],その他[小切手の請求開始日付],\">=\"&DATEVALUE(_年度&\"年\"&月間支出の概要[[#Headers],[9月]]&\"1日\"),その他[小切手の請求開始日付],\"<=\"&L$4)","v":{"v":0,"d":"¥0.00"}},{"$f":"SUMIFS(支出明細[小切手の金額],支出明細[G/L コード],月間支出の概要[[#This Row],[G/L コード]],支出明細[請求日],\">=\"&M$3,支出明細[請求日],\"<=\"&M$4)+SUMIFS(その他[小切手の金額],その他[G/L コード],月間支出の概要[[#This Row],[G/L コード]],その他[小切手の請求開始日付],\">=\"&DATEVALUE(_年度&\"年\"&月間支出の概要[[#Headers],[10月]]&\"1日\"),その他[小切手の請求開始日付],\"<=\"&M$4)","v":{"v":0,"d":"¥0.00"}},{"$f":"SUMIFS(支出明細[小切手の金額],支出明細[G/L コード],月間支出の概要[[#This Row],[G/L コード]],支出明細[請求日],\">=\"&N$3,支出明細[請求日],\"<=\"&N$4)+SUMIFS(その他[小切手の金額],その他[G/L コード],月間支出の概要[[#This Row],[G/L コード]],その他[小切手の請求開始日付],\">=\"&DATEVALUE(_年度&\"年\"&月間支出の概要[[#Headers],[11月]]&\"1日\"),その他[小切手の請求開始日付],\"<=\"&N$4)","v":{"v":0,"d":"¥0.00"}},{"$f":"SUMIFS(支出明細[小切手の金額],支出明細[G/L コード],月間支出の概要[[#This Row],[G/L コード]],支出明細[請求日],\">=\"&O$3,支出明細[請求日],\"<=\"&O$4)+SUMIFS(その他[小切手の金額],その他[G/L コード],月間支出の概要[[#This Row],[G/L コード]],その他[小切手の請求開始日付],\">=\"&DATEVALUE(_年度&\"年\"&月間支出の概要[[#Headers],[12月]]&\"1日\"),その他[小切手の請求開始日付],\"<=\"&O$4)","v":{"v":0,"d":"¥0.00"}},{"$f":"SUM(月間支出の概要[[#This Row],[1月]:[12月]])","v":{"v":0,"d":"¥0.00"}}]
[null,5000,"消耗品",{"$f":"SUMIFS(支出明細[小切手の金額],支出明細[G/L コード],月間支出の概要[[#This Row],[G/L コード]],支出明細[請求日],\">=\"&D$3,支出明細[請求日],\"<=\"&D$4)+SUMIFS(その他[小切手の金額],その他[G/L コード],月間支出の概要[[#This Row],[G/L コード]],その他[小切手の請求開始日付],\">=\"&DATEVALUE(_年度&\"年\"&月間支出の概要[[#Headers],[1月]]&\"1日\"),その他[小切手の請求開始日付],\"<=\"&D$4)","v":{"v":0,"d":"¥0.00"}},{"$f":"SUMIFS(支出明細[小切手の金額],支出明細[G/L コード],月間支出の概要[[#This Row],[G/L コード]],支出明細[請求日],\">=\"&E$3,支出明細[請求日],\"<=\"&E$4)+SUMIFS(その他[小切手の金額],その他[G/L コード],月間支出の概要[[#This Row],[G/L コード]],その他[小切手の請求開始日付],\">=\"&DATEVALUE(_年度&\"年\"&月間支出の概要[[#Headers],[2月]]&\"1日\"),その他[小切手の請求開始日付],\"<=\"&E$4)","v":{"v":0,"d":"¥0.00"}},{"$f":"SUMIFS(支出明細[小切手の金額],支出明細[G/L コード],月間支出の概要[[#This Row],[G/L コード]],支出明細[請求日],\">=\"&F$3,支出明細[請求日],\"<=\"&F$4)+SUMIFS(その他[小切手の金額],その他[G/L コード],月間支出の概要[[#This Row],[G/L コード]],その他[小切手の請求開始日付],\">=\"&DATEVALUE(_年度&\"年\"&月間支出の概要[[#Headers],[3月]]&\"1日\"),その他[小切手の請求開始日付],\"<=\"&F$4)","v":{"v":0,"d":"¥0.00"}},{"$f":"SUMIFS(支出明細[小切手の金額],支出明細[G/L コード],月間支出の概要[[#This Row],[G/L コード]],支出明細[請求日],\">=\"&G$3,支出明細[請求日],\"<=\"&G$4)+SUMIFS(その他[小切手の金額],その他[G/L コード],月間支出の概要[[#This Row],[G/L コード]],その他[小切手の請求開始日付],\">=\"&DATEVALUE(_年度&\"年\"&月間支出の概要[[#Headers],[4月]]&\"1日\"),その他[小切手の請求開始日付],\"<=\"&G$4)","v":{"v":0,"d":"¥0.00"}},{"$f":"SUMIFS(支出明細[小切手の金額],支出明細[G/L コード],月間支出の概要[[#This Row],[G/L コード]],支出明細[請求日],\">=\"&H$3,支出明細[請求日],\"<=\"&H$4)+SUMIFS(その他[小切手の金額],その他[G/L コード],月間支出の概要[[#This Row],[G/L コード]],その他[小切手の請求開始日付],\">=\"&DATEVALUE(_年度&\"年\"&月間支出の概要[[#Headers],[5月]]&\"1日\"),その他[小切手の請求開始日付],\"<=\"&H$4)","v":{"v":0,"d":"¥0.00"}},{"$f":"SUMIFS(支出明細[小切手の金額],支出明細[G/L コード],月間支出の概要[[#This Row],[G/L コード]],支出明細[請求日],\">=\"&I$3,支出明細[請求日],\"<=\"&I$4)+SUMIFS(その他[小切手の金額],その他[G/L コード],月間支出の概要[[#This Row],[G/L コード]],その他[小切手の請求開始日付],\">=\"&DATEVALUE(_年度&\"年\"&月間支出の概要[[#Headers],[6月]]&\"1日\"),その他[小切手の請求開始日付],\"<=\"&I$4)","v":{"v":0,"d":"¥0.00"}},{"$f":"SUMIFS(支出明細[小切手の金額],支出明細[G/L コード],月間支出の概要[[#This Row],[G/L コード]],支出明細[請求日],\">=\"&J$3,支出明細[請求日],\"<=\"&J$4)+SUMIFS(その他[小切手の金額],その他[G/L コード],月間支出の概要[[#This Row],[G/L コード]],その他[小切手の請求開始日付],\">=\"&DATEVALUE(_年度&\"年\"&月間支出の概要[[#Headers],[7月]]&\"1日\"),その他[小切手の請求開始日付],\"<=\"&J$4)","v":{"v":0,"d":"¥0.00"}},{"$f":"SUMIFS(支出明細[小切手の金額],支出明細[G/L コード],月間支出の概要[[#This Row],[G/L コード]],支出明細[請求日],\">=\"&K$3,支出明細[請求日],\"<=\"&K$4)+SUMIFS(その他[小切手の金額],その他[G/L コード],月間支出の概要[[#This Row],[G/L コード]],その他[小切手の請求開始日付],\">=\"&DATEVALUE(_年度&\"年\"&月間支出の概要[[#Headers],[8月]]&\"1日\"),その他[小切手の請求開始日付],\"<=\"&K$4)","v":{"v":0,"d":"¥0.00"}},{"$f":"SUMIFS(支出明細[小切手の金額],支出明細[G/L コード],月間支出の概要[[#This Row],[G/L コード]],支出明細[請求日],\">=\"&L$3,支出明細[請求日],\"<=\"&L$4)+SUMIFS(その他[小切手の金額],その他[G/L コード],月間支出の概要[[#This Row],[G/L コード]],その他[小切手の請求開始日付],\">=\"&DATEVALUE(_年度&\"年\"&月間支出の概要[[#Headers],[9月]]&\"1日\"),その他[小切手の請求開始日付],\"<=\"&L$4)","v":{"v":0,"d":"¥0.00"}},{"$f":"SUMIFS(支出明細[小切手の金額],支出明細[G/L コード],月間支出の概要[[#This Row],[G/L コード]],支出明細[請求日],\">=\"&M$3,支出明細[請求日],\"<=\"&M$4)+SUMIFS(その他[小切手の金額],その他[G/L コード],月間支出の概要[[#This Row],[G/L コード]],その他[小切手の請求開始日付],\">=\"&DATEVALUE(_年度&\"年\"&月間支出の概要[[#Headers],[10月]]&\"1日\"),その他[小切手の請求開始日付],\"<=\"&M$4)","v":{"v":0,"d":"¥0.00"}},{"$f":"SUMIFS(支出明細[小切手の金額],支出明細[G/L コード],月間支出の概要[[#This Row],[G/L コード]],支出明細[請求日],\">=\"&N$3,支出明細[請求日],\"<=\"&N$4)+SUMIFS(その他[小切手の金額],その他[G/L コード],月間支出の概要[[#This Row],[G/L コード]],その他[小切手の請求開始日付],\">=\"&DATEVALUE(_年度&\"年\"&月間支出の概要[[#Headers],[11月]]&\"1日\"),その他[小切手の請求開始日付],\"<=\"&N$4)","v":{"v":0,"d":"¥0.00"}},{"$f":"SUMIFS(支出明細[小切手の金額],支出明細[G/L コード],月間支出の概要[[#This Row],[G/L コード]],支出明細[請求日],\">=\"&O$3,支出明細[請求日],\"<=\"&O$4)+SUMIFS(その他[小切手の金額],その他[G/L コード],月間支出の概要[[#This Row],[G/L コード]],その他[小切手の請求開始日付],\">=\"&DATEVALUE(_年度&\"年\"&月間支出の概要[[#Headers],[12月]]&\"1日\"),その他[小切手の請求開始日付],\"<=\"&O$4)","v":{"v":0,"d":"¥0.00"}},{"$f":"SUM(月間支出の概要[[#This Row],[1月]:[12月]])","v":{"v":0,"d":"¥0.00"}}]
[null,6000,"クライアント経費",{"$f":"SUMIFS(支出明細[小切手の金額],支出明細[G/L コード],月間支出の概要[[#This Row],[G/L コード]],支出明細[請求日],\">=\"&D$3,支出明細[請求日],\"<=\"&D$4)+SUMIFS(その他[小切手の金額],その他[G/L コード],月間支出の概要[[#This Row],[G/L コード]],その他[小切手の請求開始日付],\">=\"&DATEVALUE(_年度&\"年\"&月間支出の概要[[#Headers],[1月]]&\"1日\"),その他[小切手の請求開始日付],\"<=\"&D$4)","v":{"v":0,"d":"¥0.00"}},{"$f":"SUMIFS(支出明細[小切手の金額],支出明細[G/L コード],月間支出の概要[[#This Row],[G/L コード]],支出明細[請求日],\">=\"&E$3,支出明細[請求日],\"<=\"&E$4)+SUMIFS(その他[小切手の金額],その他[G/L コード],月間支出の概要[[#This Row],[G/L コード]],その他[小切手の請求開始日付],\">=\"&DATEVALUE(_年度&\"年\"&月間支出の概要[[#Headers],[2月]]&\"1日\"),その他[小切手の請求開始日付],\"<=\"&E$4)","v":{"v":0,"d":"¥0.00"}},{"$f":"SUMIFS(支出明細[小切手の金額],支出明細[G/L コード],月間支出の概要[[#This Row],[G/L コード]],支出明細[請求日],\">=\"&F$3,支出明細[請求日],\"<=\"&F$4)+SUMIFS(その他[小切手の金額],その他[G/L コード],月間支出の概要[[#This Row],[G/L コード]],その他[小切手の請求開始日付],\">=\"&DATEVALUE(_年度&\"年\"&月間支出の概要[[#Headers],[3月]]&\"1日\"),その他[小切手の請求開始日付],\"<=\"&F$4)","v":{"v":0,"d":"¥0.00"}},{"$f":"SUMIFS(支出明細[小切手の金額],支出明細[G/L コード],月間支出の概要[[#This Row],[G/L コード]],支出明細[請求日],\">=\"&G$3,支出明細[請求日],\"<=\"&G$4)+SUMIFS(その他[小切手の金額],その他[G/L コード],月間支出の概要[[#This Row],[G/L コード]],その他[小切手の請求開始日付],\">=\"&DATEVALUE(_年度&\"年\"&月間支出の概要[[#Headers],[4月]]&\"1日\"),その他[小切手の請求開始日付],\"<=\"&G$4)","v":{"v":0,"d":"¥0.00"}},{"$f":"SUMIFS(支出明細[小切手の金額],支出明細[G/L コード],月間支出の概要[[#This Row],[G/L コード]],支出明細[請求日],\">=\"&H$3,支出明細[請求日],\"<=\"&H$4)+SUMIFS(その他[小切手の金額],その他[G/L コード],月間支出の概要[[#This Row],[G/L コード]],その他[小切手の請求開始日付],\">=\"&DATEVALUE(_年度&\"年\"&月間支出の概要[[#Headers],[5月]]&\"1日\"),その他[小切手の請求開始日付],\"<=\"&H$4)","v":{"v":0,"d":"¥0.00"}},{"$f":"SUMIFS(支出明細[小切手の金額],支出明細[G/L コード],月間支出の概要[[#This Row],[G/L コード]],支出明細[請求日],\">=\"&I$3,支出明細[請求日],\"<=\"&I$4)+SUMIFS(その他[小切手の金額],その他[G/L コード],月間支出の概要[[#This Row],[G/L コード]],その他[小切手の請求開始日付],\">=\"&DATEVALUE(_年度&\"年\"&月間支出の概要[[#Headers],[6月]]&\"1日\"),その他[小切手の請求開始日付],\"<=\"&I$4)","v":{"v":0,"d":"¥0.00"}},{"$f":"SUMIFS(支出明細[小切手の金額],支出明細[G/L コード],月間支出の概要[[#This Row],[G/L コード]],支出明細[請求日],\">=\"&J$3,支出明細[請求日],\"<=\"&J$4)+SUMIFS(その他[小切手の金額],その他[G/L コード],月間支出の概要[[#This Row],[G/L コード]],その他[小切手の請求開始日付],\">=\"&DATEVALUE(_年度&\"年\"&月間支出の概要[[#Headers],[7月]]&\"1日\"),その他[小切手の請求開始日付],\"<=\"&J$4)","v":{"v":0,"d":"¥0.00"}},{"$f":"SUMIFS(支出明細[小切手の金額],支出明細[G/L コード],月間支出の概要[[#This Row],[G/L コード]],支出明細[請求日],\">=\"&K$3,支出明細[請求日],\"<=\"&K$4)+SUMIFS(その他[小切手の金額],その他[G/L コード],月間支出の概要[[#This Row],[G/L コード]],その他[小切手の請求開始日付],\">=\"&DATEVALUE(_年度&\"年\"&月間支出の概要[[#Headers],[8月]]&\"1日\"),その他[小切手の請求開始日付],\"<=\"&K$4)","v":{"v":0,"d":"¥0.00"}},{"$f":"SUMIFS(支出明細[小切手の金額],支出明細[G/L コード],月間支出の概要[[#This Row],[G/L コード]],支出明細[請求日],\">=\"&L$3,支出明細[請求日],\"<=\"&L$4)+SUMIFS(その他[小切手の金額],その他[G/L コード],月間支出の概要[[#This Row],[G/L コード]],その他[小切手の請求開始日付],\">=\"&DATEVALUE(_年度&\"年\"&月間支出の概要[[#Headers],[9月]]&\"1日\"),その他[小切手の請求開始日付],\"<=\"&L$4)","v":{"v":0,"d":"¥0.00"}},{"$f":"SUMIFS(支出明細[小切手の金額],支出明細[G/L コード],月間支出の概要[[#This Row],[G/L コード]],支出明細[請求日],\">=\"&M$3,支出明細[請求日],\"<=\"&M$4)+SUMIFS(その他[小切手の金額],その他[G/L コード],月間支出の概要[[#This Row],[G/L コード]],その他[小切手の請求開始日付],\">=\"&DATEVALUE(_年度&\"年\"&月間支出の概要[[#Headers],[10月]]&\"1日\"),その他[小切手の請求開始日付],\"<=\"&M$4)","v":{"v":0,"d":"¥0.00"}},{"$f":"SUMIFS(支出明細[小切手の金額],支出明細[G/L コード],月間支出の概要[[#This Row],[G/L コード]],支出明細[請求日],\">=\"&N$3,支出明細[請求日],\"<=\"&N$4)+SUMIFS(その他[小切手の金額],その他[G/L コード],月間支出の概要[[#This Row],[G/L コード]],その他[小切手の請求開始日付],\">=\"&DATEVALUE(_年度&\"年\"&月間支出の概要[[#Headers],[11月]]&\"1日\"),その他[小切手の請求開始日付],\"<=\"&N$4)","v":{"v":0,"d":"¥0.00"}},{"$f":"SUMIFS(支出明細[小切手の金額],支出明細[G/L コード],月間支出の概要[[#This Row],[G/L コード]],支出明細[請求日],\">=\"&O$3,支出明細[請求日],\"<=\"&O$4)+SUMIFS(その他[小切手の金額],その他[G/L コード],月間支出の概要[[#This Row],[G/L コード]],その他[小切手の請求開始日付],\">=\"&DATEVALUE(_年度&\"年\"&月間支出の概要[[#Headers],[12月]]&\"1日\"),その他[小切手の請求開始日付],\"<=\"&O$4)","v":{"v":0,"d":"¥0.00"}},{"$f":"SUM(月間支出の概要[[#This Row],[1月]:[12月]])","v":{"v":0,"d":"¥0.00"}}]
[null,7000,"コンピューター",{"$f":"SUMIFS(支出明細[小切手の金額],支出明細[G/L コード],月間支出の概要[[#This Row],[G/L コード]],支出明細[請求日],\">=\"&D$3,支出明細[請求日],\"<=\"&D$4)+SUMIFS(その他[小切手の金額],その他[G/L コード],月間支出の概要[[#This Row],[G/L コード]],その他[小切手の請求開始日付],\">=\"&DATEVALUE(_年度&\"年\"&月間支出の概要[[#Headers],[1月]]&\"1日\"),その他[小切手の請求開始日付],\"<=\"&D$4)","v":{"v":0,"d":"¥0.00"}},{"$f":"SUMIFS(支出明細[小切手の金額],支出明細[G/L コード],月間支出の概要[[#This Row],[G/L コード]],支出明細[請求日],\">=\"&E$3,支出明細[請求日],\"<=\"&E$4)+SUMIFS(その他[小切手の金額],その他[G/L コード],月間支出の概要[[#This Row],[G/L コード]],その他[小切手の請求開始日付],\">=\"&DATEVALUE(_年度&\"年\"&月間支出の概要[[#Headers],[2月]]&\"1日\"),その他[小切手の請求開始日付],\"<=\"&E$4)","v":{"v":0,"d":"¥0.00"}},{"$f":"SUMIFS(支出明細[小切手の金額],支出明細[G/L コード],月間支出の概要[[#This Row],[G/L コード]],支出明細[請求日],\">=\"&F$3,支出明細[請求日],\"<=\"&F$4)+SUMIFS(その他[小切手の金額],その他[G/L コード],月間支出の概要[[#This Row],[G/L コード]],その他[小切手の請求開始日付],\">=\"&DATEVALUE(_年度&\"年\"&月間支出の概要[[#Headers],[3月]]&\"1日\"),その他[小切手の請求開始日付],\"<=\"&F$4)","v":{"v":0,"d":"¥0.00"}},{"$f":"SUMIFS(支出明細[小切手の金額],支出明細[G/L コード],月間支出の概要[[#This Row],[G/L コード]],支出明細[請求日],\">=\"&G$3,支出明細[請求日],\"<=\"&G$4)+SUMIFS(その他[小切手の金額],その他[G/L コード],月間支出の概要[[#This Row],[G/L コード]],その他[小切手の請求開始日付],\">=\"&DATEVALUE(_年度&\"年\"&月間支出の概要[[#Headers],[4月]]&\"1日\"),その他[小切手の請求開始日付],\"<=\"&G$4)","v":{"v":0,"d":"¥0.00"}},{"$f":"SUMIFS(支出明細[小切手の金額],支出明細[G/L コード],月間支出の概要[[#This Row],[G/L コード]],支出明細[請求日],\">=\"&H$3,支出明細[請求日],\"<=\"&H$4)+SUMIFS(その他[小切手の金額],その他[G/L コード],月間支出の概要[[#This Row],[G/L コード]],その他[小切手の請求開始日付],\">=\"&DATEVALUE(_年度&\"年\"&月間支出の概要[[#Headers],[5月]]&\"1日\"),その他[小切手の請求開始日付],\"<=\"&H$4)","v":{"v":0,"d":"¥0.00"}},{"$f":"SUMIFS(支出明細[小切手の金額],支出明細[G/L コード],月間支出の概要[[#This Row],[G/L コード]],支出明細[請求日],\">=\"&I$3,支出明細[請求日],\"<=\"&I$4)+SUMIFS(その他[小切手の金額],その他[G/L コード],月間支出の概要[[#This Row],[G/L コード]],その他[小切手の請求開始日付],\">=\"&DATEVALUE(_年度&\"年\"&月間支出の概要[[#Headers],[6月]]&\"1日\"),その他[小切手の請求開始日付],\"<=\"&I$4)","v":{"v":0,"d":"¥0.00"}},{"$f":"SUMIFS(支出明細[小切手の金額],支出明細[G/L コード],月間支出の概要[[#This Row],[G/L コード]],支出明細[請求日],\">=\"&J$3,支出明細[請求日],\"<=\"&J$4)+SUMIFS(その他[小切手の金額],その他[G/L コード],月間支出の概要[[#This Row],[G/L コード]],その他[小切手の請求開始日付],\">=\"&DATEVALUE(_年度&\"年\"&月間支出の概要[[#Headers],[7月]]&\"1日\"),その他[小切手の請求開始日付],\"<=\"&J$4)","v":{"v":0,"d":"¥0.00"}},{"$f":"SUMIFS(支出明細[小切手の金額],支出明細[G/L コード],月間支出の概要[[#This Row],[G/L コード]],支出明細[請求日],\">=\"&K$3,支出明細[請求日],\"<=\"&K$4)+SUMIFS(その他[小切手の金額],その他[G/L コード],月間支出の概要[[#This Row],[G/L コード]],その他[小切手の請求開始日付],\">=\"&DATEVALUE(_年度&\"年\"&月間支出の概要[[#Headers],[8月]]&\"1日\"),その他[小切手の請求開始日付],\"<=\"&K$4)","v":{"v":0,"d":"¥0.00"}},{"$f":"SUMIFS(支出明細[小切手の金額],支出明細[G/L コード],月間支出の概要[[#This Row],[G/L コード]],支出明細[請求日],\">=\"&L$3,支出明細[請求日],\"<=\"&L$4)+SUMIFS(その他[小切手の金額],その他[G/L コード],月間支出の概要[[#This Row],[G/L コード]],その他[小切手の請求開始日付],\">=\"&DATEVALUE(_年度&\"年\"&月間支出の概要[[#Headers],[9月]]&\"1日\"),その他[小切手の請求開始日付],\"<=\"&L$4)","v":{"v":0,"d":"¥0.00"}},{"$f":"SUMIFS(支出明細[小切手の金額],支出明細[G/L コード],月間支出の概要[[#This Row],[G/L コード]],支出明細[請求日],\">=\"&M$3,支出明細[請求日],\"<=\"&M$4)+SUMIFS(その他[小切手の金額],その他[G/L コード],月間支出の概要[[#This Row],[G/L コード]],その他[小切手の請求開始日付],\">=\"&DATEVALUE(_年度&\"年\"&月間支出の概要[[#Headers],[10月]]&\"1日\"),その他[小切手の請求開始日付],\"<=\"&M$4)","v":{"v":0,"d":"¥0.00"}},{"$f":"SUMIFS(支出明細[小切手の金額],支出明細[G/L コード],月間支出の概要[[#This Row],[G/L コード]],支出明細[請求日],\">=\"&N$3,支出明細[請求日],\"<=\"&N$4)+SUMIFS(その他[小切手の金額],その他[G/L コード],月間支出の概要[[#This Row],[G/L コード]],その他[小切手の請求開始日付],\">=\"&DATEVALUE(_年度&\"年\"&月間支出の概要[[#Headers],[11月]]&\"1日\"),その他[小切手の請求開始日付],\"<=\"&N$4)","v":{"v":0,"d":"¥0.00"}},{"$f":"SUMIFS(支出明細[小切手の金額],支出明細[G/L コード],月間支出の概要[[#This Row],[G/L コード]],支出明細[請求日],\">=\"&O$3,支出明細[請求日],\"<=\"&O$4)+SUMIFS(その他[小切手の金額],その他[G/L コード],月間支出の概要[[#This Row],[G/L コード]],その他[小切手の請求開始日付],\">=\"&DATEVALUE(_年度&\"年\"&月間支出の概要[[#Headers],[12月]]&\"1日\"),その他[小切手の請求開始日付],\"<=\"&O$4)","v":{"v":0,"d":"¥0.00"}},{"$f":"SUM(月間支出の概要[[#This Row],[1月]:[12月]])","v":{"v":0,"d":"¥0.00"}}]
[null,8000,"医療計画",{"$f":"SUMIFS(支出明細[小切手の金額],支出明細[G/L コード],月間支出の概要[[#This Row],[G/L コード]],支出明細[請求日],\">=\"&D$3,支出明細[請求日],\"<=\"&D$4)+SUMIFS(その他[小切手の金額],その他[G/L コード],月間支出の概要[[#This Row],[G/L コード]],その他[小切手の請求開始日付],\">=\"&DATEVALUE(_年度&\"年\"&月間支出の概要[[#Headers],[1月]]&\"1日\"),その他[小切手の請求開始日付],\"<=\"&D$4)","v":{"v":0,"d":"¥0.00"}},{"$f":"SUMIFS(支出明細[小切手の金額],支出明細[G/L コード],月間支出の概要[[#This Row],[G/L コード]],支出明細[請求日],\">=\"&E$3,支出明細[請求日],\"<=\"&E$4)+SUMIFS(その他[小切手の金額],その他[G/L コード],月間支出の概要[[#This Row],[G/L コード]],その他[小切手の請求開始日付],\">=\"&DATEVALUE(_年度&\"年\"&月間支出の概要[[#Headers],[2月]]&\"1日\"),その他[小切手の請求開始日付],\"<=\"&E$4)","v":{"v":0,"d":"¥0.00"}},{"$f":"SUMIFS(支出明細[小切手の金額],支出明細[G/L コード],月間支出の概要[[#This Row],[G/L コード]],支出明細[請求日],\">=\"&F$3,支出明細[請求日],\"<=\"&F$4)+SUMIFS(その他[小切手の金額],その他[G/L コード],月間支出の概要[[#This Row],[G/L コード]],その他[小切手の請求開始日付],\">=\"&DATEVALUE(_年度&\"年\"&月間支出の概要[[#Headers],[3月]]&\"1日\"),その他[小切手の請求開始日付],\"<=\"&F$4)","v":{"v":0,"d":"¥0.00"}},{"$f":"SUMIFS(支出明細[小切手の金額],支出明細[G/L コード],月間支出の概要[[#This Row],[G/L コード]],支出明細[請求日],\">=\"&G$3,支出明細[請求日],\"<=\"&G$4)+SUMIFS(その他[小切手の金額],その他[G/L コード],月間支出の概要[[#This Row],[G/L コード]],その他[小切手の請求開始日付],\">=\"&DATEVALUE(_年度&\"年\"&月間支出の概要[[#Headers],[4月]]&\"1日\"),その他[小切手の請求開始日付],\"<=\"&G$4)","v":{"v":0,"d":"¥0.00"}},{"$f":"SUMIFS(支出明細[小切手の金額],支出明細[G/L コード],月間支出の概要[[#This Row],[G/L コード]],支出明細[請求日],\">=\"&H$3,支出明細[請求日],\"<=\"&H$4)+SUMIFS(その他[小切手の金額],その他[G/L コード],月間支出の概要[[#This Row],[G/L コード]],その他[小切手の請求開始日付],\">=\"&DATEVALUE(_年度&\"年\"&月間支出の概要[[#Headers],[5月]]&\"1日\"),その他[小切手の請求開始日付],\"<=\"&H$4)","v":{"v":0,"d":"¥0.00"}},{"$f":"SUMIFS(支出明細[小切手の金額],支出明細[G/L コード],月間支出の概要[[#This Row],[G/L コード]],支出明細[請求日],\">=\"&I$3,支出明細[請求日],\"<=\"&I$4)+SUMIFS(その他[小切手の金額],その他[G/L コード],月間支出の概要[[#This Row],[G/L コード]],その他[小切手の請求開始日付],\">=\"&DATEVALUE(_年度&\"年\"&月間支出の概要[[#Headers],[6月]]&\"1日\"),その他[小切手の請求開始日付],\"<=\"&I$4)","v":{"v":0,"d":"¥0.00"}},{"$f":"SUMIFS(支出明細[小切手の金額],支出明細[G/L コード],月間支出の概要[[#This Row],[G/L コード]],支出明細[請求日],\">=\"&J$3,支出明細[請求日],\"<=\"&J$4)+SUMIFS(その他[小切手の金額],その他[G/L コード],月間支出の概要[[#This Row],[G/L コード]],その他[小切手の請求開始日付],\">=\"&DATEVALUE(_年度&\"年\"&月間支出の概要[[#Headers],[7月]]&\"1日\"),その他[小切手の請求開始日付],\"<=\"&J$4)","v":{"v":0,"d":"¥0.00"}},{"$f":"SUMIFS(支出明細[小切手の金額],支出明細[G/L コード],月間支出の概要[[#This Row],[G/L コード]],支出明細[請求日],\">=\"&K$3,支出明細[請求日],\"<=\"&K$4)+SUMIFS(その他[小切手の金額],その他[G/L コード],月間支出の概要[[#This Row],[G/L コード]],その他[小切手の請求開始日付],\">=\"&DATEVALUE(_年度&\"年\"&月間支出の概要[[#Headers],[8月]]&\"1日\"),その他[小切手の請求開始日付],\"<=\"&K$4)","v":{"v":0,"d":"¥0.00"}},{"$f":"SUMIFS(支出明細[小切手の金額],支出明細[G/L コード],月間支出の概要[[#This Row],[G/L コード]],支出明細[請求日],\">=\"&L$3,支出明細[請求日],\"<=\"&L$4)+SUMIFS(その他[小切手の金額],その他[G/L コード],月間支出の概要[[#This Row],[G/L コード]],その他[小切手の請求開始日付],\">=\"&DATEVALUE(_年度&\"年\"&月間支出の概要[[#Headers],[9月]]&\"1日\"),その他[小切手の請求開始日付],\"<=\"&L$4)","v":{"v":0,"d":"¥0.00"}},{"$f":"SUMIFS(支出明細[小切手の金額],支出明細[G/L コード],月間支出の概要[[#This Row],[G/L コード]],支出明細[請求日],\">=\"&M$3,支出明細[請求日],\"<=\"&M$4)+SUMIFS(その他[小切手の金額],その他[G/L コード],月間支出の概要[[#This Row],[G/L コード]],その他[小切手の請求開始日付],\">=\"&DATEVALUE(_年度&\"年\"&月間支出の概要[[#Headers],[10月]]&\"1日\"),その他[小切手の請求開始日付],\"<=\"&M$4)","v":{"v":0,"d":"¥0.00"}},{"$f":"SUMIFS(支出明細[小切手の金額],支出明細[G/L コード],月間支出の概要[[#This Row],[G/L コード]],支出明細[請求日],\">=\"&N$3,支出明細[請求日],\"<=\"&N$4)+SUMIFS(その他[小切手の金額],その他[G/L コード],月間支出の概要[[#This Row],[G/L コード]],その他[小切手の請求開始日付],\">=\"&DATEVALUE(_年度&\"年\"&月間支出の概要[[#Headers],[11月]]&\"1日\"),その他[小切手の請求開始日付],\"<=\"&N$4)","v":{"v":0,"d":"¥0.00"}},{"$f":"SUMIFS(支出明細[小切手の金額],支出明細[G/L コード],月間支出の概要[[#This Row],[G/L コード]],支出明細[請求日],\">=\"&O$3,支出明細[請求日],\"<=\"&O$4)+SUMIFS(その他[小切手の金額],その他[G/L コード],月間支出の概要[[#This Row],[G/L コード]],その他[小切手の請求開始日付],\">=\"&DATEVALUE(_年度&\"年\"&月間支出の概要[[#Headers],[12月]]&\"1日\"),その他[小切手の請求開始日付],\"<=\"&O$4)","v":{"v":0,"d":"¥0.00"}},{"$f":"SUM(月間支出の概要[[#This Row],[1月]:[12月]])","v":{"v":0,"d":"¥0.00"}}]
[null,9000,"建物のコスト",{"$f":"SUMIFS(支出明細[小切手の金額],支出明細[G/L コード],月間支出の概要[[#This Row],[G/L コード]],支出明細[請求日],\">=\"&D$3,支出明細[請求日],\"<=\"&D$4)+SUMIFS(その他[小切手の金額],その他[G/L コード],月間支出の概要[[#This Row],[G/L コード]],その他[小切手の請求開始日付],\">=\"&DATEVALUE(_年度&\"年\"&月間支出の概要[[#Headers],[1月]]&\"1日\"),その他[小切手の請求開始日付],\"<=\"&D$4)","v":{"v":0,"d":"¥0.00"}},{"$f":"SUMIFS(支出明細[小切手の金額],支出明細[G/L コード],月間支出の概要[[#This Row],[G/L コード]],支出明細[請求日],\">=\"&E$3,支出明細[請求日],\"<=\"&E$4)+SUMIFS(その他[小切手の金額],その他[G/L コード],月間支出の概要[[#This Row],[G/L コード]],その他[小切手の請求開始日付],\">=\"&DATEVALUE(_年度&\"年\"&月間支出の概要[[#Headers],[2月]]&\"1日\"),その他[小切手の請求開始日付],\"<=\"&E$4)","v":{"v":0,"d":"¥0.00"}},{"$f":"SUMIFS(支出明細[小切手の金額],支出明細[G/L コード],月間支出の概要[[#This Row],[G/L コード]],支出明細[請求日],\">=\"&F$3,支出明細[請求日],\"<=\"&F$4)+SUMIFS(その他[小切手の金額],その他[G/L コード],月間支出の概要[[#This Row],[G/L コード]],その他[小切手の請求開始日付],\">=\"&DATEVALUE(_年度&\"年\"&月間支出の概要[[#Headers],[3月]]&\"1日\"),その他[小切手の請求開始日付],\"<=\"&F$4)","v":{"v":0,"d":"¥0.00"}},{"$f":"SUMIFS(支出明細[小切手の金額],支出明細[G/L コード],月間支出の概要[[#This Row],[G/L コード]],支出明細[請求日],\">=\"&G$3,支出明細[請求日],\"<=\"&G$4)+SUMIFS(その他[小切手の金額],その他[G/L コード],月間支出の概要[[#This Row],[G/L コード]],その他[小切手の請求開始日付],\">=\"&DATEVALUE(_年度&\"年\"&月間支出の概要[[#Headers],[4月]]&\"1日\"),その他[小切手の請求開始日付],\"<=\"&G$4)","v":{"v":0,"d":"¥0.00"}},{"$f":"SUMIFS(支出明細[小切手の金額],支出明細[G/L コード],月間支出の概要[[#This Row],[G/L コード]],支出明細[請求日],\">=\"&H$3,支出明細[請求日],\"<=\"&H$4)+SUMIFS(その他[小切手の金額],その他[G/L コード],月間支出の概要[[#This Row],[G/L コード]],その他[小切手の請求開始日付],\">=\"&DATEVALUE(_年度&\"年\"&月間支出の概要[[#Headers],[5月]]&\"1日\"),その他[小切手の請求開始日付],\"<=\"&H$4)","v":{"v":0,"d":"¥0.00"}},{"$f":"SUMIFS(支出明細[小切手の金額],支出明細[G/L コード],月間支出の概要[[#This Row],[G/L コード]],支出明細[請求日],\">=\"&I$3,支出明細[請求日],\"<=\"&I$4)+SUMIFS(その他[小切手の金額],その他[G/L コード],月間支出の概要[[#This Row],[G/L コード]],その他[小切手の請求開始日付],\">=\"&DATEVALUE(_年度&\"年\"&月間支出の概要[[#Headers],[6月]]&\"1日\"),その他[小切手の請求開始日付],\"<=\"&I$4)","v":{"v":0,"d":"¥0.00"}},{"$f":"SUMIFS(支出明細[小切手の金額],支出明細[G/L コード],月間支出の概要[[#This Row],[G/L コード]],支出明細[請求日],\">=\"&J$3,支出明細[請求日],\"<=\"&J$4)+SUMIFS(その他[小切手の金額],その他[G/L コード],月間支出の概要[[#This Row],[G/L コード]],その他[小切手の請求開始日付],\">=\"&DATEVALUE(_年度&\"年\"&月間支出の概要[[#Headers],[7月]]&\"1日\"),その他[小切手の請求開始日付],\"<=\"&J$4)","v":{"v":0,"d":"¥0.00"}},{"$f":"SUMIFS(支出明細[小切手の金額],支出明細[G/L コード],月間支出の概要[[#This Row],[G/L コード]],支出明細[請求日],\">=\"&K$3,支出明細[請求日],\"<=\"&K$4)+SUMIFS(その他[小切手の金額],その他[G/L コード],月間支出の概要[[#This Row],[G/L コード]],その他[小切手の請求開始日付],\">=\"&DATEVALUE(_年度&\"年\"&月間支出の概要[[#Headers],[8月]]&\"1日\"),その他[小切手の請求開始日付],\"<=\"&K$4)","v":{"v":0,"d":"¥0.00"}},{"$f":"SUMIFS(支出明細[小切手の金額],支出明細[G/L コード],月間支出の概要[[#This Row],[G/L コード]],支出明細[請求日],\">=\"&L$3,支出明細[請求日],\"<=\"&L$4)+SUMIFS(その他[小切手の金額],その他[G/L コード],月間支出の概要[[#This Row],[G/L コード]],その他[小切手の請求開始日付],\">=\"&DATEVALUE(_年度&\"年\"&月間支出の概要[[#Headers],[9月]]&\"1日\"),その他[小切手の請求開始日付],\"<=\"&L$4)","v":{"v":0,"d":"¥0.00"}},{"$f":"SUMIFS(支出明細[小切手の金額],支出明細[G/L コード],月間支出の概要[[#This Row],[G/L コード]],支出明細[請求日],\">=\"&M$3,支出明細[請求日],\"<=\"&M$4)+SUMIFS(その他[小切手の金額],その他[G/L コード],月間支出の概要[[#This Row],[G/L コード]],その他[小切手の請求開始日付],\">=\"&DATEVALUE(_年度&\"年\"&月間支出の概要[[#Headers],[10月]]&\"1日\"),その他[小切手の請求開始日付],\"<=\"&M$4)","v":{"v":0,"d":"¥0.00"}},{"$f":"SUMIFS(支出明細[小切手の金額],支出明細[G/L コード],月間支出の概要[[#This Row],[G/L コード]],支出明細[請求日],\">=\"&N$3,支出明細[請求日],\"<=\"&N$4)+SUMIFS(その他[小切手の金額],その他[G/L コード],月間支出の概要[[#This Row],[G/L コード]],その他[小切手の請求開始日付],\">=\"&DATEVALUE(_年度&\"年\"&月間支出の概要[[#Headers],[11月]]&\"1日\"),その他[小切手の請求開始日付],\"<=\"&N$4)","v":{"v":0,"d":"¥0.00"}},{"$f":"SUMIFS(支出明細[小切手の金額],支出明細[G/L コード],月間支出の概要[[#This Row],[G/L コード]],支出明細[請求日],\">=\"&O$3,支出明細[請求日],\"<=\"&O$4)+SUMIFS(その他[小切手の金額],その他[G/L コード],月間支出の概要[[#This Row],[G/L コード]],その他[小切手の請求開始日付],\">=\"&DATEVALUE(_年度&\"年\"&月間支出の概要[[#Headers],[12月]]&\"1日\"),その他[小切手の請求開始日付],\"<=\"&O$4)","v":{"v":0,"d":"¥0.00"}},{"$f":"SUM(月間支出の概要[[#This Row],[1月]:[12月]])","v":{"v":0,"d":"¥0.00"}}]
[null,10000,"マーケティング",{"$f":"SUMIFS(支出明細[小切手の金額],支出明細[G/L コード],月間支出の概要[[#This Row],[G/L コード]],支出明細[請求日],\">=\"&D$3,支出明細[請求日],\"<=\"&D$4)+SUMIFS(その他[小切手の金額],その他[G/L コード],月間支出の概要[[#This Row],[G/L コード]],その他[小切手の請求開始日付],\">=\"&DATEVALUE(_年度&\"年\"&月間支出の概要[[#Headers],[1月]]&\"1日\"),その他[小切手の請求開始日付],\"<=\"&D$4)","v":{"v":0,"d":"¥0.00"}},{"$f":"SUMIFS(支出明細[小切手の金額],支出明細[G/L コード],月間支出の概要[[#This Row],[G/L コード]],支出明細[請求日],\">=\"&E$3,支出明細[請求日],\"<=\"&E$4)+SUMIFS(その他[小切手の金額],その他[G/L コード],月間支出の概要[[#This Row],[G/L コード]],その他[小切手の請求開始日付],\">=\"&DATEVALUE(_年度&\"年\"&月間支出の概要[[#Headers],[2月]]&\"1日\"),その他[小切手の請求開始日付],\"<=\"&E$4)","v":{"v":0,"d":"¥0.00"}},{"$f":"SUMIFS(支出明細[小切手の金額],支出明細[G/L コード],月間支出の概要[[#This Row],[G/L コード]],支出明細[請求日],\">=\"&F$3,支出明細[請求日],\"<=\"&F$4)+SUMIFS(その他[小切手の金額],その他[G/L コード],月間支出の概要[[#This Row],[G/L コード]],その他[小切手の請求開始日付],\">=\"&DATEVALUE(_年度&\"年\"&月間支出の概要[[#Headers],[3月]]&\"1日\"),その他[小切手の請求開始日付],\"<=\"&F$4)","v":{"v":0,"d":"¥0.00"}},{"$f":"SUMIFS(支出明細[小切手の金額],支出明細[G/L コード],月間支出の概要[[#This Row],[G/L コード]],支出明細[請求日],\">=\"&G$3,支出明細[請求日],\"<=\"&G$4)+SUMIFS(その他[小切手の金額],その他[G/L コード],月間支出の概要[[#This Row],[G/L コード]],その他[小切手の請求開始日付],\">=\"&DATEVALUE(_年度&\"年\"&月間支出の概要[[#Headers],[4月]]&\"1日\"),その他[小切手の請求開始日付],\"<=\"&G$4)","v":{"v":0,"d":"¥0.00"}},{"$f":"SUMIFS(支出明細[小切手の金額],支出明細[G/L コード],月間支出の概要[[#This Row],[G/L コード]],支出明細[請求日],\">=\"&H$3,支出明細[請求日],\"<=\"&H$4)+SUMIFS(その他[小切手の金額],その他[G/L コード],月間支出の概要[[#This Row],[G/L コード]],その他[小切手の請求開始日付],\">=\"&DATEVALUE(_年度&\"年\"&月間支出の概要[[#Headers],[5月]]&\"1日\"),その他[小切手の請求開始日付],\"<=\"&H$4)","v":{"v":0,"d":"¥0.00"}},{"$f":"SUMIFS(支出明細[小切手の金額],支出明細[G/L コード],月間支出の概要[[#This Row],[G/L コード]],支出明細[請求日],\">=\"&I$3,支出明細[請求日],\"<=\"&I$4)+SUMIFS(その他[小切手の金額],その他[G/L コード],月間支出の概要[[#This Row],[G/L コード]],その他[小切手の請求開始日付],\">=\"&DATEVALUE(_年度&\"年\"&月間支出の概要[[#Headers],[6月]]&\"1日\"),その他[小切手の請求開始日付],\"<=\"&I$4)","v":{"v":0,"d":"¥0.00"}},{"$f":"SUMIFS(支出明細[小切手の金額],支出明細[G/L コード],月間支出の概要[[#This Row],[G/L コード]],支出明細[請求日],\">=\"&J$3,支出明細[請求日],\"<=\"&J$4)+SUMIFS(その他[小切手の金額],その他[G/L コード],月間支出の概要[[#This Row],[G/L コード]],その他[小切手の請求開始日付],\">=\"&DATEVALUE(_年度&\"年\"&月間支出の概要[[#Headers],[7月]]&\"1日\"),その他[小切手の請求開始日付],\"<=\"&J$4)","v":{"v":0,"d":"¥0.00"}},{"$f":"SUMIFS(支出明細[小切手の金額],支出明細[G/L コード],月間支出の概要[[#This Row],[G/L コード]],支出明細[請求日],\">=\"&K$3,支出明細[請求日],\"<=\"&K$4)+SUMIFS(その他[小切手の金額],その他[G/L コード],月間支出の概要[[#This Row],[G/L コード]],その他[小切手の請求開始日付],\">=\"&DATEVALUE(_年度&\"年\"&月間支出の概要[[#Headers],[8月]]&\"1日\"),その他[小切手の請求開始日付],\"<=\"&K$4)","v":{"v":0,"d":"¥0.00"}},{"$f":"SUMIFS(支出明細[小切手の金額],支出明細[G/L コード],月間支出の概要[[#This Row],[G/L コード]],支出明細[請求日],\">=\"&L$3,支出明細[請求日],\"<=\"&L$4)+SUMIFS(その他[小切手の金額],その他[G/L コード],月間支出の概要[[#This Row],[G/L コード]],その他[小切手の請求開始日付],\">=\"&DATEVALUE(_年度&\"年\"&月間支出の概要[[#Headers],[9月]]&\"1日\"),その他[小切手の請求開始日付],\"<=\"&L$4)","v":{"v":0,"d":"¥0.00"}},{"$f":"SUMIFS(支出明細[小切手の金額],支出明細[G/L コード],月間支出の概要[[#This Row],[G/L コード]],支出明細[請求日],\">=\"&M$3,支出明細[請求日],\"<=\"&M$4)+SUMIFS(その他[小切手の金額],その他[G/L コード],月間支出の概要[[#This Row],[G/L コード]],その他[小切手の請求開始日付],\">=\"&DATEVALUE(_年度&\"年\"&月間支出の概要[[#Headers],[10月]]&\"1日\"),その他[小切手の請求開始日付],\"<=\"&M$4)","v":{"v":0,"d":"¥0.00"}},{"$f":"SUMIFS(支出明細[小切手の金額],支出明細[G/L コード],月間支出の概要[[#This Row],[G/L コード]],支出明細[請求日],\">=\"&N$3,支出明細[請求日],\"<=\"&N$4)+SUMIFS(その他[小切手の金額],その他[G/L コード],月間支出の概要[[#This Row],[G/L コード]],その他[小切手の請求開始日付],\">=\"&DATEVALUE(_年度&\"年\"&月間支出の概要[[#Headers],[11月]]&\"1日\"),その他[小切手の請求開始日付],\"<=\"&N$4)","v":{"v":0,"d":"¥0.00"}},{"$f":"SUMIFS(支出明細[小切手の金額],支出明細[G/L コード],月間支出の概要[[#This Row],[G/L コード]],支出明細[請求日],\">=\"&O$3,支出明細[請求日],\"<=\"&O$4)+SUMIFS(その他[小切手の金額],その他[G/L コード],月間支出の概要[[#This Row],[G/L コード]],その他[小切手の請求開始日付],\">=\"&DATEVALUE(_年度&\"年\"&月間支出の概要[[#Headers],[12月]]&\"1日\"),その他[小切手の請求開始日付],\"<=\"&O$4)","v":{"v":0,"d":"¥0.00"}},{"$f":"SUM(月間支出の概要[[#This Row],[1月]:[12月]])","v":{"v":0,"d":"¥0.00"}}]
[null,11000,"寄付",{"$f":"SUMIFS(支出明細[小切手の金額],支出明細[G/L コード],月間支出の概要[[#This Row],[G/L コード]],支出明細[請求日],\">=\"&D$3,支出明細[請求日],\"<=\"&D$4)+SUMIFS(その他[小切手の金額],その他[G/L コード],月間支出の概要[[#This Row],[G/L コード]],その他[小切手の請求開始日付],\">=\"&DATEVALUE(_年度&\"年\"&月間支出の概要[[#Headers],[1月]]&\"1日\"),その他[小切手の請求開始日付],\"<=\"&D$4)","v":{"v":0,"d":"¥0.00"}},{"$f":"SUMIFS(支出明細[小切手の金額],支出明細[G/L コード],月間支出の概要[[#This Row],[G/L コード]],支出明細[請求日],\">=\"&E$3,支出明細[請求日],\"<=\"&E$4)+SUMIFS(その他[小切手の金額],その他[G/L コード],月間支出の概要[[#This Row],[G/L コード]],その他[小切手の請求開始日付],\">=\"&DATEVALUE(_年度&\"年\"&月間支出の概要[[#Headers],[2月]]&\"1日\"),その他[小切手の請求開始日付],\"<=\"&E$4)","v":{"v":0,"d":"¥0.00"}},{"$f":"SUMIFS(支出明細[小切手の金額],支出明細[G/L コード],月間支出の概要[[#This Row],[G/L コード]],支出明細[請求日],\">=\"&F$3,支出明細[請求日],\"<=\"&F$4)+SUMIFS(その他[小切手の金額],その他[G/L コード],月間支出の概要[[#This Row],[G/L コード]],その他[小切手の請求開始日付],\">=\"&DATEVALUE(_年度&\"年\"&月間支出の概要[[#Headers],[3月]]&\"1日\"),その他[小切手の請求開始日付],\"<=\"&F$4)","v":{"v":0,"d":"¥0.00"}},{"$f":"SUMIFS(支出明細[小切手の金額],支出明細[G/L コード],月間支出の概要[[#This Row],[G/L コード]],支出明細[請求日],\">=\"&G$3,支出明細[請求日],\"<=\"&G$4)+SUMIFS(その他[小切手の金額],その他[G/L コード],月間支出の概要[[#This Row],[G/L コード]],その他[小切手の請求開始日付],\">=\"&DATEVALUE(_年度&\"年\"&月間支出の概要[[#Headers],[4月]]&\"1日\"),その他[小切手の請求開始日付],\"<=\"&G$4)","v":{"v":0,"d":"¥0.00"}},{"$f":"SUMIFS(支出明細[小切手の金額],支出明細[G/L コード],月間支出の概要[[#This Row],[G/L コード]],支出明細[請求日],\">=\"&H$3,支出明細[請求日],\"<=\"&H$4)+SUMIFS(その他[小切手の金額],その他[G/L コード],月間支出の概要[[#This Row],[G/L コード]],その他[小切手の請求開始日付],\">=\"&DATEVALUE(_年度&\"年\"&月間支出の概要[[#Headers],[5月]]&\"1日\"),その他[小切手の請求開始日付],\"<=\"&H$4)","v":{"v":0,"d":"¥0.00"}},{"$f":"SUMIFS(支出明細[小切手の金額],支出明細[G/L コード],月間支出の概要[[#This Row],[G/L コード]],支出明細[請求日],\">=\"&I$3,支出明細[請求日],\"<=\"&I$4)+SUMIFS(その他[小切手の金額],その他[G/L コード],月間支出の概要[[#This Row],[G/L コード]],その他[小切手の請求開始日付],\">=\"&DATEVALUE(_年度&\"年\"&月間支出の概要[[#Headers],[6月]]&\"1日\"),その他[小切手の請求開始日付],\"<=\"&I$4)","v":{"v":0,"d":"¥0.00"}},{"$f":"SUMIFS(支出明細[小切手の金額],支出明細[G/L コード],月間支出の概要[[#This Row],[G/L コード]],支出明細[請求日],\">=\"&J$3,支出明細[請求日],\"<=\"&J$4)+SUMIFS(その他[小切手の金額],その他[G/L コード],月間支出の概要[[#This Row],[G/L コード]],その他[小切手の請求開始日付],\">=\"&DATEVALUE(_年度&\"年\"&月間支出の概要[[#Headers],[7月]]&\"1日\"),その他[小切手の請求開始日付],\"<=\"&J$4)","v":{"v":0,"d":"¥0.00"}},{"$f":"SUMIFS(支出明細[小切手の金額],支出明細[G/L コード],月間支出の概要[[#This Row],[G/L コード]],支出明細[請求日],\">=\"&K$3,支出明細[請求日],\"<=\"&K$4)+SUMIFS(その他[小切手の金額],その他[G/L コード],月間支出の概要[[#This Row],[G/L コード]],その他[小切手の請求開始日付],\">=\"&DATEVALUE(_年度&\"年\"&月間支出の概要[[#Headers],[8月]]&\"1日\"),その他[小切手の請求開始日付],\"<=\"&K$4)","v":{"v":0,"d":"¥0.00"}},{"$f":"SUMIFS(支出明細[小切手の金額],支出明細[G/L コード],月間支出の概要[[#This Row],[G/L コード]],支出明細[請求日],\">=\"&L$3,支出明細[請求日],\"<=\"&L$4)+SUMIFS(その他[小切手の金額],その他[G/L コード],月間支出の概要[[#This Row],[G/L コード]],その他[小切手の請求開始日付],\">=\"&DATEVALUE(_年度&\"年\"&月間支出の概要[[#Headers],[9月]]&\"1日\"),その他[小切手の請求開始日付],\"<=\"&L$4)","v":{"v":0,"d":"¥0.00"}},{"$f":"SUMIFS(支出明細[小切手の金額],支出明細[G/L コード],月間支出の概要[[#This Row],[G/L コード]],支出明細[請求日],\">=\"&M$3,支出明細[請求日],\"<=\"&M$4)+SUMIFS(その他[小切手の金額],その他[G/L コード],月間支出の概要[[#This Row],[G/L コード]],その他[小切手の請求開始日付],\">=\"&DATEVALUE(_年度&\"年\"&月間支出の概要[[#Headers],[10月]]&\"1日\"),その他[小切手の請求開始日付],\"<=\"&M$4)","v":{"v":0,"d":"¥0.00"}},{"$f":"SUMIFS(支出明細[小切手の金額],支出明細[G/L コード],月間支出の概要[[#This Row],[G/L コード]],支出明細[請求日],\">=\"&N$3,支出明細[請求日],\"<=\"&N$4)+SUMIFS(その他[小切手の金額],その他[G/L コード],月間支出の概要[[#This Row],[G/L コード]],その他[小切手の請求開始日付],\">=\"&DATEVALUE(_年度&\"年\"&月間支出の概要[[#Headers],[11月]]&\"1日\"),その他[小切手の請求開始日付],\"<=\"&N$4)","v":{"v":0,"d":"¥0.00"}},{"$f":"SUMIFS(支出明細[小切手の金額],支出明細[G/L コード],月間支出の概要[[#This Row],[G/L コード]],支出明細[請求日],\">=\"&O$3,支出明細[請求日],\"<=\"&O$4)+SUMIFS(その他[小切手の金額],その他[G/L コード],月間支出の概要[[#This Row],[G/L コード]],その他[小切手の請求開始日付],\">=\"&DATEVALUE(_年度&\"年\"&月間支出の概要[[#Headers],[12月]]&\"1日\"),その他[小切手の請求開始日付],\"<=\"&O$4)","v":{"v":0,"d":"¥0.00"}},{"$f":"SUM(月間支出の概要[[#This Row],[1月]:[12月]])","v":{"v":0,"d":"¥0.00"}}]
[null,12000,"スポンサー",{"$f":"SUMIFS(支出明細[小切手の金額],支出明細[G/L コード],月間支出の概要[[#This Row],[G/L コード]],支出明細[請求日],\">=\"&D$3,支出明細[請求日],\"<=\"&D$4)+SUMIFS(その他[小切手の金額],その他[G/L コード],月間支出の概要[[#This Row],[G/L コード]],その他[小切手の請求開始日付],\">=\"&DATEVALUE(_年度&\"年\"&月間支出の概要[[#Headers],[1月]]&\"1日\"),その他[小切手の請求開始日付],\"<=\"&D$4)","v":{"v":0,"d":"¥0.00"}},{"$f":"SUMIFS(支出明細[小切手の金額],支出明細[G/L コード],月間支出の概要[[#This Row],[G/L コード]],支出明細[請求日],\">=\"&E$3,支出明細[請求日],\"<=\"&E$4)+SUMIFS(その他[小切手の金額],その他[G/L コード],月間支出の概要[[#This Row],[G/L コード]],その他[小切手の請求開始日付],\">=\"&DATEVALUE(_年度&\"年\"&月間支出の概要[[#Headers],[2月]]&\"1日\"),その他[小切手の請求開始日付],\"<=\"&E$4)","v":{"v":0,"d":"¥0.00"}},{"$f":"SUMIFS(支出明細[小切手の金額],支出明細[G/L コード],月間支出の概要[[#This Row],[G/L コード]],支出明細[請求日],\">=\"&F$3,支出明細[請求日],\"<=\"&F$4)+SUMIFS(その他[小切手の金額],その他[G/L コード],月間支出の概要[[#This Row],[G/L コード]],その他[小切手の請求開始日付],\">=\"&DATEVALUE(_年度&\"年\"&月間支出の概要[[#Headers],[3月]]&\"1日\"),その他[小切手の請求開始日付],\"<=\"&F$4)","v":{"v":0,"d":"¥0.00"}},{"$f":"SUMIFS(支出明細[小切手の金額],支出明細[G/L コード],月間支出の概要[[#This Row],[G/L コード]],支出明細[請求日],\">=\"&G$3,支出明細[請求日],\"<=\"&G$4)+SUMIFS(その他[小切手の金額],その他[G/L コード],月間支出の概要[[#This Row],[G/L コード]],その他[小切手の請求開始日付],\">=\"&DATEVALUE(_年度&\"年\"&月間支出の概要[[#Headers],[4月]]&\"1日\"),その他[小切手の請求開始日付],\"<=\"&G$4)","v":{"v":0,"d":"¥0.00"}},{"$f":"SUMIFS(支出明細[小切手の金額],支出明細[G/L コード],月間支出の概要[[#This Row],[G/L コード]],支出明細[請求日],\">=\"&H$3,支出明細[請求日],\"<=\"&H$4)+SUMIFS(その他[小切手の金額],その他[G/L コード],月間支出の概要[[#This Row],[G/L コード]],その他[小切手の請求開始日付],\">=\"&DATEVALUE(_年度&\"年\"&月間支出の概要[[#Headers],[5月]]&\"1日\"),その他[小切手の請求開始日付],\"<=\"&H$4)","v":{"v":0,"d":"¥0.00"}},{"$f":"SUMIFS(支出明細[小切手の金額],支出明細[G/L コード],月間支出の概要[[#This Row],[G/L コード]],支出明細[請求日],\">=\"&I$3,支出明細[請求日],\"<=\"&I$4)+SUMIFS(その他[小切手の金額],その他[G/L コード],月間支出の概要[[#This Row],[G/L コード]],その他[小切手の請求開始日付],\">=\"&DATEVALUE(_年度&\"年\"&月間支出の概要[[#Headers],[6月]]&\"1日\"),その他[小切手の請求開始日付],\"<=\"&I$4)","v":{"v":0,"d":"¥0.00"}},{"$f":"SUMIFS(支出明細[小切手の金額],支出明細[G/L コード],月間支出の概要[[#This Row],[G/L コード]],支出明細[請求日],\">=\"&J$3,支出明細[請求日],\"<=\"&J$4)+SUMIFS(その他[小切手の金額],その他[G/L コード],月間支出の概要[[#This Row],[G/L コード]],その他[小切手の請求開始日付],\">=\"&DATEVALUE(_年度&\"年\"&月間支出の概要[[#Headers],[7月]]&\"1日\"),その他[小切手の請求開始日付],\"<=\"&J$4)","v":{"v":0,"d":"¥0.00"}},{"$f":"SUMIFS(支出明細[小切手の金額],支出明細[G/L コード],月間支出の概要[[#This Row],[G/L コード]],支出明細[請求日],\">=\"&K$3,支出明細[請求日],\"<=\"&K$4)+SUMIFS(その他[小切手の金額],その他[G/L コード],月間支出の概要[[#This Row],[G/L コード]],その他[小切手の請求開始日付],\">=\"&DATEVALUE(_年度&\"年\"&月間支出の概要[[#Headers],[8月]]&\"1日\"),その他[小切手の請求開始日付],\"<=\"&K$4)","v":{"v":0,"d":"¥0.00"}},{"$f":"SUMIFS(支出明細[小切手の金額],支出明細[G/L コード],月間支出の概要[[#This Row],[G/L コード]],支出明細[請求日],\">=\"&L$3,支出明細[請求日],\"<=\"&L$4)+SUMIFS(その他[小切手の金額],その他[G/L コード],月間支出の概要[[#This Row],[G/L コード]],その他[小切手の請求開始日付],\">=\"&DATEVALUE(_年度&\"年\"&月間支出の概要[[#Headers],[9月]]&\"1日\"),その他[小切手の請求開始日付],\"<=\"&L$4)","v":{"v":0,"d":"¥0.00"}},{"$f":"SUMIFS(支出明細[小切手の金額],支出明細[G/L コード],月間支出の概要[[#This Row],[G/L コード]],支出明細[請求日],\">=\"&M$3,支出明細[請求日],\"<=\"&M$4)+SUMIFS(その他[小切手の金額],その他[G/L コード],月間支出の概要[[#This Row],[G/L コード]],その他[小切手の請求開始日付],\">=\"&DATEVALUE(_年度&\"年\"&月間支出の概要[[#Headers],[10月]]&\"1日\"),その他[小切手の請求開始日付],\"<=\"&M$4)","v":{"v":0,"d":"¥0.00"}},{"$f":"SUMIFS(支出明細[小切手の金額],支出明細[G/L コード],月間支出の概要[[#This Row],[G/L コード]],支出明細[請求日],\">=\"&N$3,支出明細[請求日],\"<=\"&N$4)+SUMIFS(その他[小切手の金額],その他[G/L コード],月間支出の概要[[#This Row],[G/L コード]],その他[小切手の請求開始日付],\">=\"&DATEVALUE(_年度&\"年\"&月間支出の概要[[#Headers],[11月]]&\"1日\"),その他[小切手の請求開始日付],\"<=\"&N$4)","v":{"v":0,"d":"¥0.00"}},{"$f":"SUMIFS(支出明細[小切手の金額],支出明細[G/L コード],月間支出の概要[[#This Row],[G/L コード]],支出明細[請求日],\">=\"&O$3,支出明細[請求日],\"<=\"&O$4)+SUMIFS(その他[小切手の金額],その他[G/L コード],月間支出の概要[[#This Row],[G/L コード]],その他[小切手の請求開始日付],\">=\"&DATEVALUE(_年度&\"年\"&月間支出の概要[[#Headers],[12月]]&\"1日\"),その他[小切手の請求開始日付],\"<=\"&O$4)","v":{"v":0,"d":"¥0.00"}},{"$f":"SUM(月間支出の概要[[#This Row],[1月]:[12月]])","v":{"v":0,"d":"¥0.00"}}]
[null,"集計",null,{"$f":"SUBTOTAL(109,月間支出の概要[1月])","v":{"v":0,"d":"¥0.00"}},{"$f":"SUBTOTAL(109,月間支出の概要[2月])","v":{"v":0,"d":"¥0.00"}},{"$f":"SUBTOTAL(109,月間支出の概要[3月])","v":{"v":0,"d":"¥0.00"}},{"$f":"SUBTOTAL(109,月間支出の概要[4月])","v":{"v":0,"d":"¥0.00"}},{"$f":"SUBTOTAL(109,月間支出の概要[5月])","v":{"v":0,"d":"¥0.00"}},{"$f":"SUBTOTAL(109,月間支出の概要[6月])","v":{"v":0,"d":"¥0.00"}},{"$f":"SUBTOTAL(109,月間支出の概要[7月])","v":{"v":0,"d":"¥0.00"}},{"$f":"SUBTOTAL(109,月間支出の概要[8月])","v":{"v":0,"d":"¥0.00"}},{"$f":"SUBTOTAL(109,月間支出の概要[9月])","v":{"v":0,"d":"¥0.00"}},{"$f":"SUBTOTAL(109,月間支出の概要[10月])","v":{"v":0,"d":"¥0.00"}},{"$f":"SUBTOTAL(109,月間支出の概要[11月])","v":{"v":0,"d":"¥0.00"}},{"$f":"SUBTOTAL(109,月間支出の概要[12月])","v":{"v":0,"d":"¥0.00"}},{"$f":"SUBTOTAL(109,月間支出の概要[集計])","v":{"v":0,"d":"¥0.00"}}]

{"sheet":"支出明細","index":2,"n_rows":6,"n_cols":10,"rows_kept":6,"merged":[[1,1,1,9],[2,1,2,5],[2,6,2,9]]}
[]
[null,"経費明細"]
[]
[null,"G/L コード","請求日","請求書番号","請求者","小切手の金額","受取人","小切手の使用","配布方法","提出日"]
[null,1000,"日付",100,"Andy Teal",{"v":750.75,"d":"¥750.75"},"Consolidated Messenger ","発行者","メール","日付"]
[null,7000,"日付",101,"Robert Walters",{"v":2500,"d":"¥2,500.00"},"A.Datum Corporation ","2 台のデスクトップ コンピューター","クレジット","日付"]

{"sheet":"寄付とスポンサー","index":3,"n_rows":6,"n_cols":12,"rows_kept":6,"merged":[[1,1,1,11],[2,1,2,5],[2,6,2,11]]}
[]
[null,"寄付/スポンサー"]
[]
[null,"G/L コード","小切手の請求開始日付","請求者","小切手の金額","前年度寄付","受取人","用途","承認者","カテゴリ","配布方法","提出日"]
[null,12000,"日付","Susan W. Eaton",{"v":1000,"d":"¥1,000.00"},{"v":12,"d":"¥12.00"},"School of Fine Art ","奨学金","Kim Ralls","アート","小切手","日付"]
[null,11000,"日付","Susan W. Eaton",{"v":2500,"d":"¥2,500.00"},{"v":0,"d":"¥0.00"},"Wingtip Toys ","コミュニティ","Kathie Flood","コミュニティ","小切手","日付"]